Workbook

Sheet OVERALL STATS
A1: OVERALL TITLE COMPANY MARKET STATISTICS Douglas County, NV)
A2: Reporting Period: MAY, 2020
A5: OVERALL SALES MARKET (Resales & Subdivision Sales)
A6: TITLE COMPANY | B6: CLOSINGS | C6: DOLLAR VOLUME | D6: CLOSINGS | E6: DOLLAR VOLUME | F6: CLOSINGS | G6: DOLLAR VOLUME
A7: Western Title | B7: 30 | C7: 11942312.44 | D7: =B7/$B$14 -> 0.3571428571 | E7: =C7/$C$14 -> 0.2917679589 | F7: =RANK(B7,$B$7:$B$13) -> 1 | G7: =RANK(C7,$C$7:$C$13) -> 1
A8: Ticor Title | B8: 21 | C8: 9189564 | D8: =B8/$B$14 -> 0.25 | E8: =C8/$C$14 -> 0.2245143346 | F8: =RANK(B8,$B$7:$B$13) -> 2 | G8: =RANK(C8,$C$7:$C$13) -> 3
A9: First American Title | B9: 15 | C9: 9966980 | D9: =B9/$B$14 -> 0.1785714286 | E9: =C9/$C$14 -> 0.2435077315 | F9: 3 | G9: 2
A10: First Centennial Title | B10: 9 | C10: 4492000 | D10: =B10/$B$14 -> 0.1071428571 | E10: =C10/$C$14 -> 0.1097460545 | F10: 4 | G10: 4
A11: Signature Title | B11: 4 | C11: 3675000 | D11: =B11/$B$14 -> 0.04761904762 | E11: =C11/$C$14 -> 0.08978556326 | F11: 5 | G11: 5
A12: Stewart Title | B12: 4 | C12: 1440000 | D12: =B12/$B$14 -> 0.04761904762 | E12: =C12/$C$14 -> 0.03518128193 | F12: 5 | G12: 6
A13: Toiyabe Title | B13: 1 | C13: 225000 | D13: =B13/$B$14 -> 0.0119047619 | E13: =C13/$C$14 -> 0.005497075301 | F13: 7 | G13: 7
A14: GRAND TOTAL | B14: =SUM(B7:B13) -> 84 | C14: =SUM(C7:C13) -> 40930856.44 | D14: =SUM(D7:D13) -> 1 | E14: =SUM(E7:E13) -> 1
A16: OVERALL LOAN ONLY MARKET (Refi's, Construction, Commercial, Credit Lines, Homequity, etc.)
D17: % OF | E17: % OF | F17: RANK BY | G17: RANK BY
A18: TITLECOMPANY | B18: CLOSINGS | C18: DOLLAR VOLUME | D18: CLOSINGS | E18: DOLLAR VOLUME | F18: CLOSINGS | G18: DOLLAR VOLUME
A19: Western Title | B19: 54 | C19: 19057742 | D19: =B19/$B$27 -> 0.3176470588 | E19: =C19/$C$27 -> 0.3324874021 | F19: =RANK(B19,$B$19:$B$26) -> 1 | G19: =RANK(C19,$C$19:$C$26) -> 1
A20: Ticor Title | B20: 43 | C20: 13414722 | D20: 0.2529411765 | E20: 0.2340374882 | F20: =RANK(B20,$B$19:$B$26) -> 2 | G20: =RANK(C20,$C$19:$C$26) -> 2
A21: First Centennial Title | B21: 39 | C21: 11841154 | D21: 0.2294117647 | E21: 0.2065845225 | F21: 3 | G21: 3
A22: First American Title | B22: 24 | C22: 7307379 | D22: 0.1411764706 | E22: 0.1274868481 | F22: 4 | G22: 4
A23: Signature Title | B23: 6 | C23: 4329600 | D23: 0.03529411765 | E23: 0.0755355727 | F23: 5 | G23: 5
A24: Stewart Title | B24: 2 | C24: 355592 | D24: 0.01176470588 | E24: 0.006203770641 | F24: 6 | G24: 7
A25: Driggs Title Agency | B25: 1 | C25: 712500 | D25: =B25/$B$27 -> 0.005882352941 | E25: =C25/$C$27 -> 0.01243050063 | F25: 7 | G25: 6
A26: Toiyabe Title | B26: 1 | C26: 300000 | D26: =B26/$B$27 -> 0.005882352941 | E26: =C26/$C$27 -> 0.005233895004 | F26: 7 | G26: 8
A27: GRAND TOTAL | B27: =SUM(B19:B26) -> 170 | C27: =SUM(C19:C26) -> 57318689 | D27: =SUM(D19:D26) -> 1 | E27: =SUM(E19:E26) -> 1
A29: OVERALL SALES AND LOAN ONLY MARKETS COMBINED
D30: % OF | E30: % OF | F30: RANK BY | G30: RANK BY
A31: TITLECOMPANY | B31: CLOSINGS | C31: DOLLAR VOLUME | D31: CLOSINGS | E31: DOLLAR VOLUME | F31: CLOSINGS | G31: DOLLAR VOLUME
A32: Western Title | B32: 84 | C32: 31000054.44 | D32: =B32/$B$40 -> 0.3307086614 | E32: =C32/$C$40 -> 0.3155236424 | F32: =RANK(B32,$B$32:$B$39) -> 1 | G32: =RANK(C32,C32:C39) -> 1
A33: Ticor Title | B33: 64 | C33: 22604286 | D33: 0.2519685039 | E33: 0.2300701331 | F33: =RANK(B33,$B$32:$B$39) -> 2 | G33: =RANK(C33,C33:C40) -> 2
A34: First Centennial Title | B34: 48 | C34: 16333154 | D34: 0.188976378 | E34: 0.1662415223 | F34: 3 | G34: 3
A35: First American Title | B35: 39 | C35: 17274359 | D35: =B35/$B$40 -> 0.1535433071 | E35: =C35/$C$40 -> 0.1758212613 | F35: 4 | G35: 2
A36: Signature Title | B36: 10 | C36: 8004600 | D36: 0.03937007874 | E36: 0.08147213266 | F36: 5 | G36: 2
A37: Stewart Title | B37: 6 | C37: 1795592 | D37: 0.02362204724 | E37: 0.0182758301 | F37: 6 | G37: 2
A38: Toiyabe Title | B38: 2 | C38: 525000 | D38: 0.007874015748 | E38: 0.005343536173 | F38: 7 | G38: 3
A39: Driggs Title Agency | B39: 1 | C39: 712500 | D39: 0.003937007874 | E39: 0.007251941949 | F39: 8 | G39: 2
A40: GRAND TOTAL | B40: =SUM(B32:B39) -> 254 | C40: =SUM(C32:C39) -> 98249545.44 | D40: =SUM(D32:D39) -> 1 | E40: =SUM(E32:E39) -> 1
A42: Information provided by Datasource | D42: SEE CHARTS BELOW:
A43: www.datasourcenev.com

Sheet SALES STATS
A1: SALES MARKET Douglas County, NV)
A2: ='OVERALL STATS'!A2 -> Reporting Period: MAY, 2020
A4: RESALE MARKET (Includes ALL types of real property)
D5: % OF | E5: % OF | F5: RANK BY | G5: RANK BY
A6: TITLE COMPANY | B6: CLOSINGS | C6: DOLLAR VOLUME | D6: CLOSINGS | E6: DOLLAR VOLUME | F6: CLOSINGS | G6: DOLLAR VOLUME
A7: Western Title | B7: 24 | C7: 9550613.44 | D7: =B7/$B$14 -> 0.32 | E7: =C7/$C$14 -> 0.2743116124 | F7: =RANK(B7,$B$7:$B$13) -> 1 | G7: =RANK(C7,$C$7:$C$13) -> 1
A8: Ticor Title | B8: 21 | C8: 9189564 | D8: =B8/$B$14 -> 0.28 | E8: =C8/$C$14 -> 0.2639415922 | F8: =RANK(B8,$B$7:$B$13) -> 2 | G8: =RANK(C8,$C$7:$C$13) -> 2
A9: First American Title | B9: 12 | C9: 6244480 | D9: =B9/$B$14 -> 0.16 | E9: =C9/$C$14 -> 0.1793532309 | F9: 3 | G9: 3
A10: First Centennial Title | B10: 9 | C10: 4492000 | D10: =B10/$B$14 -> 0.12 | E10: =C10/$C$14 -> 0.1290187034 | F10: 4 | G10: 4
A11: Signature Title | B11: 4 | C11: 3675000 | D11: =B11/$B$14 -> 0.05333333333 | E11: =C11/$C$14 -> 0.1055529241 | F11: 5 | G11: 5
A12: Stewart Title | B12: 4 | C12: 1440000 | D12: =B12/$B$14 -> 0.05333333333 | E12: =C12/$C$14 -> 0.04135951311 | F12: 5 | G12: 6
A13: Toiyabe Title | B13: 1 | C13: 225000 | D13: =B13/$B$14 -> 0.01333333333 | E13: =C13/$C$14 -> 0.006462423924 | F13: 7 | G13: 7
A14: GRAND TOTAL | B14: =SUM(B7:B13) -> 75 | C14: =SUM(C7:C13) -> 34816657.44 | D14: =SUM(D7:D13) -> 1 | E14: =SUM(E7:E13) -> 1
A16: SUBDIVISION SALES (Builder/Developer Sales)
D17: % OF | E17: % OF | F17: RANK BY | G17: RANK BY
A18: TITLE COMPANY | B18: CLOSINGS | C18: DOLLAR VOLUME | D18: CLOSINGS | E18: DOLLAR VOLUME | F18: CLOSINGS | G18: DOLLAR VOLUME
A19: Western Title | B19: 6 | C19: 2391699 | D19: =B19/$B$21 -> 0.6666666667 | E19: =C19/$C$21 -> 0.391171272 | F19: 1 | G19: 2
A20: First American Title | B20: 3 | C20: 3722500 | D20: =B20/$B$21 -> 0.3333333333 | E20: =C20/$C$21 -> 0.608828728 | F20: 2 | G20: 1
A21: GRAND TOTAL | B21: =SUM(B19:B20) -> 9 | C21: =SUM(C19:C20) -> 6114199 | D21: =SUM(D19:D20) -> 1 | E21: =SUM(E19:E20) -> 1
A23: RESIDENTIAL RESALE MARKET (Residential Properties Only)
D24: % OF | E24: % OF | F24: RANK BY | G24: RANK BY
A25: TITLE COMPANY | B25: CLOSINGS | C25: DOLLAR VOLUME | D25: CLOSINGS | E25: DOLLAR VOLUME | F25: CLOSINGS | G25: DOLLAR VOLUME
A26: Ticor Title | B26: 19 | C26: 8825564 | D26: =B26/$B$32 -> 0.3275862069 | E26: =C26/$C$32 -> 0.328886532 | F26: 1 | G26: 1
A27: Western Title | B27: 17 | C27: 7833613.44 | D27: 0.2931034483 | E27: 0.291921282 | F27: 2 | G27: 2
A28: First American Title | B28: 10 | C28: 5013500 | D28: 0.1724137931 | E28: 0.1868291509 | F28: 3 | G28: 3
A29: First Centennial Title | B29: 7 | C29: 3497000 | D29: 0.1206896552 | E29: 0.1303164537 | F29: 4 | G29: 4
A30: Stewart Title | B30: 4 | C30: 1440000 | D30: 0.06896551724 | E30: 0.0536619083 | F30: 5 | G30: 5
A31: Toiyabe Title | B31: 1 | C31: 225000 | D31: 0.01724137931 | E31: 0.008384673172 | F31: 6 | G31: 6
A32: GRAND TOTAL | B32: =SUM(B26:B31) -> 58 | C32: =SUM(C26:C31) -> 26834677.44 | D32: =SUM(D26:D31) -> 1 | E32: =SUM(E26:E31) -> 1
A34: COMMERCIAL/INDUSTRIAL, APARTMENTS, MOBILE HOME PARKS SALES MARKET
D35: % OF | E35: % OF | F35: RANK BY | G35: RANK BY
A36: TITLE COMPANY | B36: CLOSINGS | C36: DOLLAR VOLUME | D36: CLOSINGS | E36: DOLLAR VOLUME | F36: CLOSINGS | G36: DOLLAR VOLUME
A37: Signature Title | B37: 2 | C37: 2030000 | D37: =B37/$B$39 -> 0.6666666667 | E37: =C37/$C$39 -> 0.7504621072 | F37: 1 | G37: 1
A38: First Centennial Title | B38: 1 | C38: 675000 | D38: =B38/$B$39 -> 0.3333333333 | E38: =C38/$C$39 -> 0.2495378928 | F38: 2 | G38: 2
A39: GRAND TOTAL | B39: =SUM(B37:B38) -> 3 | C39: =SUM(C37:C38) -> 2705000 | D39: =SUM(D37:D38) -> 1 | E39: =SUM(E37:E38) -> 1
A41: VACANT LAND SALES
D42: % OF | E42: % OF | F42: RANK BY | G42: RANK BY
A43: TITLE COMPANY | B43: CLOSINGS | C43: DOLLAR VOLUME | D43: CLOSINGS | E43: DOLLAR VOLUME | F43: CLOSINGS | G43: DOLLAR VOLUME
A44: Western Title | B44: 7 | C44: 1717000 | D44: =B44/$B$49 -> 0.5 | E44: =C44/$C$49 -> 0.3253754989 | F44: 1 | G44: 1
A45: Signature Title | B45: 2 | C45: 1645000 | D45: =B45/$B$49 -> 0.1428571429 | E45: =C45/$C$49 -> 0.3117313312 | F45: 2 | G45: 2
A46: First American Title | B46: 2 | C46: 1230980 | D46: =B46/$B$49 -> 0.1428571429 | E46: =C46/$C$49 -> 0.2332735769 | F46: 2 | G46: 3
A47: Ticor Title | B47: 2 | C47: 364000 | D47: =B47/$B$49 -> 0.1428571429 | E47: =C47/$C$49 -> 0.06897884775 | F47: 2 | G47: 4
A48: First Centennial Title | B48: 1 | C48: 320000 | D48: =B48/$B$49 -> 0.07142857143 | E48: =C48/$C$49 -> 0.06064074527 | F48: 5 | G48: 5
A49: GRAND TOTAL | B49: =SUM(B44:B48) -> 14 | C49: =SUM(C44:C48) -> 5276980 | D49: =SUM(D44:D48) -> 1 | E49: =SUM(E44:E48) -> 1
A51: RESIDENTIAL RESALE MARKET (Excluding Zephyr Cove)
D52: % OF | E52: % OF | F52: RANK BY | G52: RANK BY
A53: TITLE COMPANY | B53: CLOSINGS | C53: DOLLAR VOLUME | D53: CLOSINGS | E53: DOLLAR VOLUME | F53: CLOSINGS | G53: DOLLAR VOLUME
A54: Ticor Title | B54: 19 | C54: 8825564 | D54: =B54/$B$60 -> 0.3275862069 | E54: =C54/$C$60 -> 0.328886532 | F54: 1 | G54: 1
A55: Western Title | B55: 17 | C55: 7833613.44 | D55: =B55/$B$60 -> 0.2931034483 | E55: =C55/$C$60 -> 0.291921282 | F55: 2 | G55: 2
A56: First American Title | B56: 10 | C56: 5013500 | D56: =B56/$B$60 -> 0.1724137931 | E56: =C56/$C$60 -> 0.1868291509 | F56: 3 | G56: 3
A57: First Centennial Title | B57: 7 | C57: 3497000 | D57: =B57/$B$60 -> 0.1206896552 | E57: =C57/$C$60 -> 0.1303164537 | F57: 4 | G57: 4
A58: Stewart Title | B58: 4 | C58: 1440000 | D58: =B58/$B$60 -> 0.06896551724 | E58: =C58/$C$60 -> 0.0536619083 | F58: 5 | G58: 5
A59: Toiyabe Title | B59: 1 | C59: 225000 | D59: =B59/$B$60 -> 0.01724137931 | E59: =C59/$C$60 -> 0.008384673172 | F59: 6 | G59: 6
A60: GRAND TOTAL | B60: =SUM(B54:B59) -> 58 | C60: =SUM(C54:C59) -> 26834677.44 | D60: =SUM(D54:D59) -> 1 | E60: =SUM(E54:E59) -> 1
A62: Information provided by Datasource
A63: www.datasourcenev.com

Sheet LOAN ONLY STATS
A1: LOAN ONLY MARKETS (Douglas County, NV)
A2: ='OVERALL STATS'!A2 -> Reporting Period: MAY, 2020
A4: CONVENTIONAL LOANS MARKET (Refi's)
D5: % OF | E5: % OF | F5: RANK BY | G5: RANK BY
A6: TITLECOMPANY | B6: CLOSINGS | C6: DOLLAR VOLUME | D6: CLOSINGS | E6: DOLLAR VOLUME | F6: CLOSINGS | G6: DOLLAR VOLUME
A7: Western Title | B7: 52 | C7: 18440492 | D7: =B7/$B$15 -> 0.3190184049 | E7: =C7/$C$15 -> 0.3344944613 | F7: =RANK(B7,$B$7:$B$14) -> 1 | G7: =RANK(C7,$C$7:$C$14) -> 1
A8: Ticor Title | B8: 41 | C8: 12429722 | D8: =B8/$B$15 -> 0.2515337423 | E8: =C8/$C$15 -> 0.2254643295 | F8: =RANK(B8,$B$7:$B$14) -> 2 | G8: =RANK(C8,$C$7:$C$14) -> 2
A9: First Centennial Title | B9: 36 | C9: 11254154 | D9: =B9/$B$15 -> 0.2208588957 | E9: =C9/$C$15 -> 0.20414055 | F9: 3 | G9: 3
A10: First American Title | B10: 24 | C10: 7307379 | D10: 0.1472392638 | E10: 0.1325494896 | F10: 4 | G10: 4
A11: Signature Title | B11: 6 | C11: 4329600 | D11: 0.03680981595 | E11: 0.07853517247 | F11: 5 | G11: 5
A12: Stewart Title | B12: 2 | C12: 355592 | D12: 0.01226993865 | E12: 0.006450129122 | F12: 6 | G12: 7
A13: Driggs Title Agency | B13: 1 | C13: 712500 | D13: 0.006134969325 | E13: 0.01292412934 | F13: 7 | G13: 6
A14: Toiyabe Title | B14: 1 | C14: 300000 | D14: =B14/$B$15 -> 0.006134969325 | E14: =C14/$C$15 -> 0.005441738669 | F14: 7 | G14: 8
A15: GRAND TOTAL | B15: =SUM(B7:B14) -> 163 | C15: =SUM(C7:C14) -> 55129439 | D15: =SUM(D7:D14) -> 1 | E15: =SUM(E7:E14) -> 1
A17: COMMERCIAL LOANS MARKET
D18: % OF | E18: % OF | F18: RANK BY | G18: RANK BY
A19: TITLECOMPANY | B19: CLOSINGS | C19: DOLLAR VOLUME | D19: CLOSINGS | E19: DOLLAR VOLUME | F19: CLOSINGS | G19: DOLLAR VOLUME
A20: NO COMMERCIAL LOANS
A21: GRAND TOTAL | B21: =SUM(B20:B20) -> 0 | C21: =SUM(C20:C20) -> 0
A23: HOME EQUITY & CREDIT LINE LOANS MARKET
D24: % OF | E24: % OF | F24: RANK BY | G24: RANK BY
A25: TITLECOMPANY | B25: CLOSINGS | C25: DOLLAR VOLUME | D25: CLOSINGS | E25: DOLLAR VOLUME | F25: CLOSINGS | G25: DOLLAR VOLUME
A26: First Centennial Title | B26: 2 | C26: 215000 | D26: =B26/$B$27 -> 1 | E26: =C26/$C$27 -> 1 | F26: 1 | G26: 1
A27: GRAND TOTAL | B27: =SUM(B26:B26) -> 2 | C27: =SUM(C26:C26) -> 215000 | D27: =SUM(D26:D26) -> 1 | E27: =SUM(E26:E26) -> 1
A29: CONSTRUCTION LOANS MARKET
D30: % OF | E30: % OF | F30: RANK BY | G30: RANK BY
A31: TITLECOMPANY | B31: CLOSINGS | C31: DOLLAR VOLUME | D31: CLOSINGS | E31: DOLLAR VOLUME | F31: CLOSINGS | G31: DOLLAR VOLUME
A32: Western Title | B32: 2 | C32: 617250 | D32: =B32/$B$34 -> 0.6666666667 | E32: =C32/$C$34 -> 0.6239575436 | F32: 1 | G32: 1
A33: First Centennial Title | B33: 1 | C33: 372000 | D33: =B33/$B$34 -> 0.3333333333 | E33: =C33/$C$34 -> 0.3760424564 | F33: 2 | G33: 2
A34: GRAND TOTAL | B34: =SUM(B32:B33) -> 3 | C34: =SUM(C32:C33) -> 989250 | D34: =SUM(D32:D33) -> 1 | E34: =SUM(E32:E33) -> 1
A36: HARD MONEY LOANS MARKET
D37: % OF | E37: % OF | F37: RANK BY | G37: RANK BY
A38: TITLECOMPANY | B38: CLOSINGS | C38: DOLLAR VOLUME | D38: CLOSINGS | E38: DOLLAR VOLUME | F38: CLOSINGS | G38: DOLLAR VOLUME
A39: Ticor Title | B39: 1 | C39: 675000 | D39: =B39/$B$40 -> 1 | E39: =C39/$C$40 -> 1 | F39: 1 | G39: 1
A40: GRAND TOTAL | B40: =SUM(B39:B39) -> 1 | C40: =SUM(C39:C39) -> 675000 | D40: =SUM(D39:D39) -> 1 | E40: =SUM(E39:E39) -> 1
A43: Information provided by Datasource
A44: www.datasourcenev.com

Sheet BRANCH SALES TRACKING
A1: BUILDER/DEVELOPER | B1: (All)
A2: PROPTYPE | B2: (All)
D4: Values
A5: TITLE COMPANY | B5: BRANCH | C5: EO | D5: CLOSINGS | E5: DOLLAR VOL. | F5: % OF CLOSINGS | G5: % OF DOLLAR VOL.
A6: First American Title | D6: 15 | E6: 9966980 | F6: 0.1785714286 | G6: 0.2435077315
B7: KIETZKE | D7: 2 | E7: 1752980 | F7: 0.02380952381 | G7: 0.04282783583
C8: MLR | D8: 1 | E8: 1162980 | F8: 0.0119047619 | G8: 0.02841328282
C9: MH | D9: 1 | E9: 590000 | F9: 0.0119047619 | G9: 0.01441455301
B11: MINDEN | D11: 13 | E11: 8214000 | F11: 0.1547619048 | G11: 0.2006798957
C12: MK | D12: 13 | E12: 8214000 | F12: 0.1547619048 | G12: 0.2006798957
A14: First Centennial Title | D14: 9 | E14: 4492000 | F14: 0.1071428571 | G14: 0.1097460545
B15: CARSON CITY | D15: 6 | E15: 2832000 | F15: 0.07142857143 | G15: 0.06918985446
C16: 17 | D16: 4 | E16: 2019000 | F16: 0.04761904762 | G16: 0.04932708904
C17: 18 | D17: 2 | E17: 813000 | F17: 0.02380952381 | G17: 0.01986276542
B19: RIDGEVIEW | D19: 3 | E19: 1660000 | F19: 0.03571428571 | G19: 0.0405562
C20: 10 | D20: 1 | E20: 650000 | F20: 0.0119047619 | G20: 0.01588043976
C21: 15 | D21: 1 | E21: 335000 | F21: 0.0119047619 | G21: 0.008184534338
C22: 20 | D22: 1 | E22: 675000 | F22: 0.0119047619 | G22: 0.0164912259
A24: Ticor Title | D24: 21 | E24: 9189564 | F24: 0.25 | G24: 0.2245143346
B25: CARSON CITY | D25: 3 | E25: 1190000 | F25: 0.03571428571 | G25: 0.02907342048
C26: DKD | D26: 3 | E26: 1190000 | F26: 0.03571428571 | G26: 0.02907342048
B28: GARDNERVILLE | D28: 13 | E28: 5366500 | F28: 0.1547619048 | G28: 0.1311113538
C29: RLT | D29: 13 | E29: 5366500 | F29: 0.1547619048 | G29: 0.1311113538
B31: INCLINE | D31: 1 | E31: 308164 | F31: 0.0119047619 | G31: 0.007528892059
C32: SLP | D32: 1 | E32: 308164 | F32: 0.0119047619 | G32: 0.007528892059
B34: KIETZKE | D34: 1 | E34: 1500000 | F34: 0.0119047619 | G34: 0.03664716868
C35: ACM | D35: 1 | E35: 1500000 | F35: 0.0119047619 | G35: 0.03664716868
B37: LAKESIDE | D37: 3 | E37: 824900 | F37: 0.03571428571 | G37: 0.02015349963
C38: JN | D38: 2 | E38: 456900 | F38: 0.02380952381 | G38: 0.01116272758
C39: SL | D39: 1 | E39: 368000 | F39: 0.0119047619 | G39: 0.008990772048
A41: Toiyabe Title | D41: 1 | E41: 225000 | F41: 0.0119047619 | G41: 0.005497075301
B42: MCCARRAN | D42: 1 | E42: 225000 | F42: 0.0119047619 | G42: 0.005497075301
C43: JH | D43: 1 | E43: 225000 | F43: 0.0119047619 | G43: 0.005497075301
A45: Western Title | D45: 30 | E45: 11942312.44 | F45: 0.3571428571 | G45: 0.2917679589
B46: CARSON CITY | D46: 2 | E46: 813000 | F46: 0.02380952381 | G46: 0.01986276542
C47: AMG | D47: 2 | E47: 813000 | F47: 0.02380952381 | G47: 0.01986276542
B49: GARDNERVILLE | D49: 27 | E49: 10879312.44 | F49: 0.3214285714 | G49: 0.265797332
C50: ARJ | D50: 7 | E50: 3152213.44 | F50: 0.08333333333 | G50: 0.07701313176
C51: TEA | D51: 11 | E51: 3886099 | F51: 0.130952381 | G51: 0.09494301703
C52: WLD | D52: 3 | E52: 1346000 | F52: 0.03571428571 | G52: 0.03288472603
C53: SLA | D53: 6 | E53: 2495000 | F53: 0.07142857143 | G53: 0.06095645723
B55: KIETZKE | D55: 1 | E55: 250000 | F55: 0.0119047619 | G55: 0.006107861446
C56: SAB | D56: 1 | E56: 250000 | F56: 0.0119047619 | G56: 0.006107861446
A58: Stewart Title | D58: 4 | E58: 1440000 | F58: 0.04761904762 | G58: 0.03518128193
B59: PLUMB | D59: 4 | E59: 1440000 | F59: 0.04761904762 | G59: 0.03518128193
C60: UNK | D60: 4 | E60: 1440000 | F60: 0.04761904762 | G60: 0.03518128193
A62: Signature Title | D62: 4 | E62: 3675000 | F62: 0.04761904762 | G62: 0.08978556326
B63: ZEPHYR | D63: 4 | E63: 3675000 | F63: 0.04761904762 | G63: 0.08978556326
C64: JML | D64: 4 | E64: 3675000 | F64: 0.04761904762 | G64: 0.08978556326
A66: Grand Total | D66: 84 | E66: 40930856.44 | F66: 1 | G66: 1

Sheet LENDER TRACKING
A1: TYPELOAN | B1: (All)
C3: Values
A4: LENDER | B4: TITLE COMPANY | C4: CLOSINGS | D4: DOLLAR VOL. | E4: % OF CLOSINGS | F4: % OF DOLLAR VOL.
A5: AMERICAN PACIFIC MORTGAGE CORPORATION | C5: 1 | D5: 296000 | E5: 0.005882352941 | F5: 0.005164109737
B6: First American Title | C6: 1 | D6: 296000 | E6: 0.005882352941 | F6: 0.005164109737
A8: AXIA FINANCIAL LLC | C8: 1 | D8: 296000 | E8: 0.005882352941 | F8: 0.005164109737
B9: Western Title | C9: 1 | D9: 296000 | E9: 0.005882352941 | F9: 0.005164109737
A11: BAY EQUITY LLC | C11: 1 | D11: 231000 | E11: 0.005882352941 | F11: 0.004030099153
B12: Stewart Title | C12: 1 | D12: 231000 | E12: 0.005882352941 | F12: 0.004030099153
A14: EVERGREEN MONEYSOURCE MORTGAGE COMPANY | C14: 2 | D14: 839000 | E14: 0.01176470588 | F14: 0.01463745969
B15: First Centennial Title | C15: 1 | D15: 434000 | E15: 0.005882352941 | F15: 0.007571701439
B16: Ticor Title | C16: 1 | D16: 405000 | E16: 0.005882352941 | F16: 0.007065758256
A18: FAIRWAY INDEPENDENT MORTGAGE CORPORATION | C18: 1 | D18: 589000 | E18: 0.005882352941 | F18: 0.01027588052
B19: Signature Title | C19: 1 | D19: 589000 | E19: 0.005882352941 | F19: 0.01027588052
A21: FINANCE OF AMERICA MORTGAGE LLC | C21: 12 | D21: 3918465 | E21: 0.07058823529 | F21: 0.06836278129
B22: Ticor Title | C22: 8 | D22: 2160965 | E22: 0.04705882353 | F22: 0.03770087973
B23: Western Title | C23: 4 | D23: 1757500 | E23: 0.02352941176 | F23: 0.03066190157
A25: GREATER NEVADA CREDIT UNION | C25: 1 | D25: 25000 | E25: 0.005882352941 | F25: 0.000436157917
B26: First Centennial Title | C26: 1 | D26: 25000 | E26: 0.005882352941 | F26: 0.000436157917
A28: GREATER NEVADA MORTGAGE | C28: 23 | D28: 5671504 | E28: 0.1352941176 | F28: 0.09894685484
B29: First American Title | C29: 1 | D29: 219000 | E29: 0.005882352941 | F29: 0.003820743353
B30: First Centennial Title | C30: 12 | D30: 2780850 | E30: 0.07058823529 | F30: 0.04851558974
B31: Ticor Title | C31: 8 | D31: 1709154 | E31: 0.04705882353 | F31: 0.02981844194
B32: Western Title | C32: 2 | D32: 962500 | E32: 0.01176470588 | F32: 0.0167920798
A34: GUILD MORTGAGE COMPANY | C34: 29 | D34: 9416217 | E34: 0.1705882353 | F34: 0.1642783037
B35: First American Title | C35: 11 | D35: 4017068 | E35: 0.06470588235 | F35: 0.07008304045
B36: First Centennial Title | C36: 5 | D36: 1390000 | E36: 0.02941176471 | F36: 0.02425038019
B37: Ticor Title | C37: 7 | D37: 2114810 | E37: 0.04117647059 | F37: 0.03689564498
B38: Toiyabe Title | C38: 1 | D38: 300000 | E38: 0.005882352941 | F38: 0.005233895004
B39: Western Title | C39: 4 | D39: 1288639 | E39: 0.02352941176 | F39: 0.02248200408
B40: Signature Title | C40: 1 | D40: 305700 | E40: 0.005882352941 | F40: 0.005333339009
A42: MOUNTAIN AMERICA FEDERAL CREDIT UNION | C42: 3 | D42: 1072000 | E42: 0.01764705882 | F42: 0.01870245148
B43: First Centennial Title | C43: 3 | D43: 1072000 | E43: 0.01764705882 | F43: 0.01870245148
A45: NEVADA STATE BANK | C45: 4 | D45: 964800 | E45: 0.02352941176 | F45: 0.01683220633
B46: Western Title | C46: 4 | D46: 964800 | E46: 0.02352941176 | F46: 0.01683220633
A48: NEW AMERICAN FUNDING | C48: 8 | D48: 2643400 | E48: 0.04705882353 | F48: 0.04611759351
B49: First Centennial Title | C49: 1 | D49: 240500 | E49: 0.005882352941 | F49: 0.004195839162
B50: Ticor Title | C50: 1 | D50: 364000 | E50: 0.005882352941 | F50: 0.006350459272
B51: Western Title | C51: 6 | D51: 2038900 | E51: 0.03529411765 | F51: 0.03557129508
A53: ON Q FINANCIAL INC | C53: 1 | D53: 363800 | E53: 0.005882352941 | F53: 0.006346970008
B54: Western Title | C54: 1 | D54: 363800 | E54: 0.005882352941 | F54: 0.006346970008
A56: ONE NEVADA CREDIT UNION | C56: 1 | D56: 254000 | E56: 0.005882352941 | F56: 0.004431364437
B57: First Centennial Title | C57: 1 | D57: 254000 | E57: 0.005882352941 | F57: 0.004431364437
A59: PRIMELENDING | C59: 8 | D59: 2065453 | E59: 0.04705882353 | F59: 0.03603454713
B60: First American Title | C60: 3 | D60: 626651 | E60: 0.01764705882 | F60: 0.01093275179
B61: Ticor Title | C61: 3 | D61: 891802 | E61: 0.01764705882 | F61: 0.01555866011
B62: Western Title | C62: 2 | D62: 547000 | E62: 0.01176470588 | F62: 0.009543135224
A64: QUICKEN LOANS INC | C64: 1 | D64: 124592 | E64: 0.005882352941 | F64: 0.002173671488
B65: Stewart Title | C65: 1 | D65: 124592 | E65: 0.005882352941 | F65: 0.002173671488
A67: SIERRA PACIFIC MORTGAGE COMPANY INC | C67: 7 | D67: 2164000 | E67: 0.04117647059 | F67: 0.0377538293
B68: Western Title | C68: 7 | D68: 2164000 | E68: 0.04117647059 | F68: 0.0377538293
A70: SYNERGY HOME MORTGAGE LLC | C70: 1 | D70: 275000 | E70: 0.005882352941 | F70: 0.004797737087
B71: First Centennial Title | C71: 1 | D71: 275000 | E71: 0.005882352941 | F71: 0.004797737087
A73: UNITED FEDERAL CREDIT UNION | C73: 4 | D73: 1429182 | E73: 0.02352941176 | F73: 0.02493396177
B74: First Centennial Title | C74: 2 | D74: 903000 | E74: 0.01176470588 | F74: 0.01575402396
B75: Ticor Title | C75: 1 | D75: 326182 | E75: 0.005882352941 | F75: 0.005690674467
B76: Western Title | C76: 1 | D76: 200000 | E76: 0.005882352941 | F76: 0.003489263336
A78: US BANK NA | C78: 8 | D78: 3036900 | E78: 0.04705882353 | F78: 0.05298271913
B79: First American Title | C79: 3 | D79: 881000 | E79: 0.01764705882 | F79: 0.015370205
B80: Western Title | C80: 5 | D80: 2155900 | E80: 0.02941176471 | F80: 0.03761251413
A82: WELLS FARGO BANK NA | C82: 13 | D82: 6133463 | E82: 0.07647058824 | F82: 0.1070063378
B83: First American Title | C83: 1 | D83: 44760 | E83: 0.005882352941 | F83: 0.0007808971346
B84: First Centennial Title | C84: 4 | D84: 1566750 | E84: 0.02352941176 | F84: 0.02733401666
B85: Ticor Title | C85: 1 | D85: 159000 | E85: 0.005882352941 | F85: 0.002773964352
B86: Western Title | C86: 6 | D86: 2953453 | E86: 0.03529411765 | F86: 0.05152687634
B87: Signature Title | C87: 1 | D87: 1409500 | E87: 0.005882352941 | F87: 0.02459058336
A89: PRIMARY RESIDENTIAL MORTGAGE INC | C89: 4 | D89: 1027300 | E89: 0.02352941176 | F89: 0.01792260113
B90: Western Title | C90: 3 | D90: 800000 | E90: 0.01764705882 | F90: 0.01395705334
B91: Signature Title | C91: 1 | D91: 227300 | E91: 0.005882352941 | F91: 0.003965547781
A93: EL DORADO SAVINGS BANK | C93: 3 | D93: 836000 | E93: 0.01764705882 | F93: 0.01458512074
B94: First American Title | C94: 1 | D94: 230000 | E94: 0.005882352941 | F94: 0.004012652836
B95: Ticor Title | C95: 1 | D95: 256000 | E95: 0.005882352941 | F95: 0.00446625707
B96: Western Title | C96: 1 | D96: 350000 | E96: 0.005882352941 | F96: 0.006106210838
A98: OPEN MORTGAGE LLC | C98: 1 | D98: 712500 | E98: 0.005882352941 | F98: 0.01243050063
B99: Driggs Title Agency | C99: 1 | D99: 712500 | E99: 0.005882352941 | F99: 0.01243050063
A101: NAVY FEDERAL CREDIT UNION | C101: 2 | D101: 737363 | E101: 0.01176470588 | F101: 0.01286426841
B102: First American Title | C102: 1 | D102: 258000 | E102: 0.005882352941 | F102: 0.004501149704
B103: Ticor Title | C103: 1 | D103: 479363 | E103: 0.005882352941 | F103: 0.008363118703
A105: NOVA FINANCIAL & INVESTMENT CORPORATION | C105: 1 | D105: 510400 | E105: 0.005882352941 | F105: 0.008904600034
B106: First American Title | C106: 1 | D106: 510400 | E106: 0.005882352941 | F106: 0.008904600034
A108: SUN WEST MORTGAGE COMPANY INC | C108: 2 | D108: 468500 | E108: 0.01176470588 | F108: 0.008173599365
B109: First American Title | C109: 1 | D109: 224500 | E109: 0.005882352941 | F109: 0.003916698095
B110: First Centennial Title | C110: 1 | D110: 244000 | E110: 0.005882352941 | F110: 0.00425690127
A112: LENDUS LLC | C112: 2 | D112: 845600 | E112: 0.01176470588 | F112: 0.01475260538
B113: First Centennial Title | C113: 2 | D113: 845600 | E113: 0.01176470588 | F113: 0.01475260538
A115: WELCOME HOME FUNDING LLC | C115: 2 | D115: 796000 | E115: 0.01176470588 | F115: 0.01388726808
B116: First Centennial Title | C116: 2 | D116: 796000 | E116: 0.01176470588 | F116: 0.01388726808
A118: AMERICAN FINANCIAL RESOURCES INC | C118: 1 | D118: 275004 | E118: 0.005882352941 | F118: 0.004797806872
B119: First Centennial Title | C119: 1 | D119: 275004 | E119: 0.005882352941 | F119: 0.004797806872
A121: CARDINAL FINANCIAL COMPANY | C121: 5 | D121: 1500746 | E121: 0.02941176471 | F121: 0.02618248997
B122: First Centennial Title | C122: 1 | D122: 359450 | E122: 0.005882352941 | F122: 0.006271078531
B123: Ticor Title | C123: 4 | D123: 1141296 | E123: 0.02352941176 | F123: 0.01991141144
A125: MOVEMENT MORTGAGE | C125: 1 | D125: 380000 | E125: 0.005882352941 | F125: 0.006629600339
B126: First Centennial Title | C126: 1 | D126: 380000 | E126: 0.005882352941 | F126: 0.006629600339
A128: MOVEMENT MORTGAGE LLC | C128: 1 | D128: 498100 | E128: 0.005882352941 | F128: 0.008690010339
B129: Signature Title | C129: 1 | D129: 498100 | E129: 0.005882352941 | F129: 0.008690010339
A131: NORTHWEST FARM CREDIT SERVICES | C131: 1 | D131: 1300000 | E131: 0.005882352941 | F131: 0.02268021168
B132: Signature Title | C132: 1 | D132: 1300000 | E132: 0.005882352941 | F132: 0.02268021168
A134: EQUITY PRIME MORTGAGE LLC | C134: 1 | D134: 125000 | E134: 0.005882352941 | F134: 0.002180789585
B135: Ticor Title | C135: 1 | D135: 125000 | E135: 0.005882352941 | F135: 0.002180789585
A137: OMEGA MORTGAGE GROUP | C137: 2 | D137: 745600 | E137: 0.01176470588 | F137: 0.01300797372
B138: Ticor Title | C138: 2 | D138: 745600 | E138: 0.01176470588 | F138: 0.01300797372
A140: SIMON PROPERTIES LLC | C140: 1 | D140: 675000 | E140: 0.005882352941 | F140: 0.01177626376
B141: Ticor Title | C141: 1 | D141: 675000 | E141: 0.005882352941 | F141: 0.01177626376
A143: BANK OF AMERICA | C143: 1 | D143: 1050000 | E143: 0.005882352941 | F143: 0.01831863251
B144: Ticor Title | C144: 1 | D144: 1050000 | E144: 0.005882352941 | F144: 0.01831863251
A146: FIRST BANK | C146: 1 | D146: 350600 | E146: 0.005882352941 | F146: 0.006116678628
B147: Ticor Title | C147: 1 | D147: 350600 | E147: 0.005882352941 | F147: 0.006116678628
A149: CEFCU | C149: 1 | D149: 460950 | E149: 0.005882352941 | F149: 0.008041879674
B150: Ticor Title | C150: 1 | D150: 460950 | E150: 0.005882352941 | F150: 0.008041879674
A152: LOANDEPOT COM LLC | C152: 1 | D152: 273000 | E152: 0.005882352941 | F152: 0.004762844454
B153: Western Title | C153: 1 | D153: 273000 | E153: 0.005882352941 | F153: 0.004762844454
A155: DIGNIFIED HOME LOANS LLC | C155: 2 | D155: 531000 | E155: 0.01176470588 | F155: 0.009263994157
B156: Western Title | C156: 2 | D156: 531000 | E156: 0.01176470588 | F156: 0.009263994157
A158: FIRST GUARANTY MORTGAGE CORPORATION | C158: 1 | D158: 334000 | E158: 0.005882352941 | F158: 0.005827069771
B159: Western Title | C159: 1 | D159: 334000 | E159: 0.005882352941 | F159: 0.005827069771
A161: NORTHPOINTE BANK | C161: 1 | D161: 460000 | E161: 0.005882352941 | F161: 0.008025305673
B162: Western Title | C162: 1 | D162: 460000 | E162: 0.005882352941 | F162: 0.008025305673
A164: ALL PRO FUNDING IV LLC | C164: 2 | D164: 617250 | E164: 0.01176470588 | F164: 0.01076873897
B165: Western Title | C165: 2 | D165: 617250 | E165: 0.01176470588 | F165: 0.01076873897
A167: Grand Total | C167: 170 | D167: 57318689 | E167: 1 | F167: 1

Sheet SALES_LIST (hidden)
A1: FULLNAME | B1: RECBY | C1: BRANCH | D1: EO | E1: PROPTYPE | F1: DOCNUM | G1: AMOUNT | H1: SUB | I1: INSURED | J1: RECDATE | K1: Last Row: | L1: 85
A2: First American Title | B2: FA | C2: MINDEN | D2: MK | E2: SINGLE FAM RES. | F2: 945892 | G2: 450000 | H2: NO | I2: YES | J2: 2020-05-11
A3: First American Title | B3: FA | C3: MINDEN | D3: MK | E3: SINGLE FAM RES. | F3: 945881 | G3: 350000 | H3: NO | I3: YES | J3: 2020-05-11
A4: First American Title | B4: FA | C4: KIETZKE | D4: MH | E4: SINGLE FAM RES. | F4: 945629 | G4: 590000 | H4: NO | I4: YES | J4: 2020-05-05
A5: First American Title | B5: FA | C5: MINDEN | D5: MK | E5: SINGLE FAM RES. | F5: 945769 | G5: 740000 | H5: NO | I5: YES | J5: 2020-05-07
A6: First American Title | B6: FA | C6: KIETZKE | D6: MLR | E6: VACANT LAND | F6: 946349 | G6: 1162980 | H6: NO | I6: YES | J6: 2020-05-20
A7: First American Title | B7: FA | C7: MINDEN | D7: MK | E7: MOBILE HOME | F7: 946745 | G7: 205000 | H7: NO | I7: YES | J7: 2020-05-28
A8: First American Title | B8: FA | C8: MINDEN | D8: MK | E8: CONDO/TWNHSE | F8: 946299 | G8: 1225000 | H8: YES | I8: YES | J8: 2020-05-19
A9: First American Title | B9: FA | C9: MINDEN | D9: MK | E9: VACANT LAND | F9: 945960 | G9: 68000 | H9: NO | I9: YES | J9: 2020-05-13
A10: First American Title | B10: FA | C10: MINDEN | D10: MK | E10: SINGLE FAM RES. | F10: 946035 | G10: 359000 | H10: NO | I10: YES | J10: 2020-05-14
A11: First American Title | B11: FA | C11: MINDEN | D11: MK | E11: CONDO/TWNHSE | F11: 946443 | G11: 1165500 | H11: YES | I11: YES | J11: 2020-05-21
A12: First American Title | B12: FA | C12: MINDEN | D12: MK | E12: CONDO/TWNHSE | F12: 945936 | G12: 1332000 | H12: YES | I12: YES | J12: 2020-05-12
A13: First American Title | B13: FA | C13: MINDEN | D13: MK | E13: SINGLE FAM RES. | F13: 946792 | G13: 735000 | H13: NO | I13: YES | J13: 2020-05-29
A14: First American Title | B14: FA | C14: MINDEN | D14: MK | E14: SINGLE FAM RES. | F14: 945683 | G14: 490000 | H14: NO | I14: YES | J14: 2020-05-06
A15: First American Title | B15: FA | C15: MINDEN | D15: MK | E15: SINGLE FAM RES. | F15: 945965 | G15: 780000 | H15: NO | I15: YES | J15: 2020-05-13
A16: First American Title | B16: FA | C16: MINDEN | D16: MK | E16: SINGLE FAM RES. | F16: 946403 | G16: 314500 | H16: NO | I16: YES | J16: 2020-05-20
A17: First Centennial Title | B17: FC | C17: RIDGEVIEW | D17: 15 | E17: SINGLE FAM RES. | F17: 945476 | G17: 335000 | H17: NO | I17: YES | J17: 2020-05-01
A18: First Centennial Title | B18: FC | C18: CARSON CITY | D18: 17 | E18: SINGLE FAM RES. | F18: 945929 | G18: 660000 | H18: NO | I18: YES | J18: 2020-05-12
A19: First Centennial Title | B19: FC | C19: RIDGEVIEW | D19: 20 | E19: COMMERCIAL | F19: 946490 | G19: 675000 | H19: NO | I19: YES | J19: 2020-05-22
A20: First Centennial Title | B20: FC | C20: CARSON CITY | D20: 17 | E20: SINGLE FAM RES. | F20: 945974 | G20: 699000 | H20: NO | I20: YES | J20: 2020-05-13
A21: First Centennial Title | B21: FC | C21: RIDGEVIEW | D21: 10 | E21: CONDO/TWNHSE | F21: 946580 | G21: 650000 | H21: NO | I21: YES | J21: 2020-05-26
A22: First Centennial Title | B22: FC | C22: CARSON CITY | D22: 18 | E22: SINGLE FAM RES. | F22: 946623 | G22: 350000 | H22: NO | I22: YES | J22: 2020-05-26
A23: First Centennial Title | B23: FC | C23: CARSON CITY | D23: 17 | E23: SINGLE FAM RES. | F23: 946562 | G23: 340000 | H23: NO | I23: YES | J23: 2020-05-26
A24: First Centennial Title | B24: FC | C24: CARSON CITY | D24: 18 | E24: SINGLE FAM RES. | F24: 946747 | G24: 463000 | H24: NO | I24: YES | J24: 2020-05-28
A25: First Centennial Title | B25: FC | C25: CARSON CITY | D25: 17 | E25: VACANT LAND | F25: 946791 | G25: 320000 | H25: NO | I25: YES | J25: 2020-05-29
A26: Signature Title | B26: SIG | C26: ZEPHYR | D26: JML | E26: VACANT LAND | F26: 946076 | G26: 895000 | H26: NO | I26: YES | J26: 2020-05-15
A27: Signature Title | B27: SIG | C27: ZEPHYR | D27: JML | E27: VACANT LAND | F27: 945808 | G27: 750000 | H27: NO | I27: YES | J27: 2020-05-08
A28: Signature Title | B28: SIG | C28: ZEPHYR | D28: JML | E28: COMMERCIAL | F28: 945836 | G28: 1500000 | H28: NO | I28: YES | J28: 2020-05-08
A29: Signature Title | B29: SIG | C29: ZEPHYR | D29: JML | E29: COMMERCIAL | F29: 946126 | G29: 530000 | H29: NO | I29: YES | J29: 2020-05-15
A30: Stewart Title | B30: ST | C30: PLUMB | D30: UNK | E30: MOBILE HOME | F30: 946399 | G30: 210000 | H30: NO | I30: YES | J30: 2020-05-20
A31: Stewart Title | B31: ST | C31: PLUMB | D31: UNK | E31: SINGLE FAM RES. | F31: 945942 | G31: 430000 | H31: NO | I31: YES | J31: 2020-05-12
A32: Stewart Title | B32: ST | C32: PLUMB | D32: UNK | E32: SINGLE FAM RES. | F32: 946425 | G32: 385000 | H32: NO | I32: YES | J32: 2020-05-21
A33: Stewart Title | B33: ST | C33: PLUMB | D33: UNK | E33: SINGLE FAM RES. | F33: 946409 | G33: 415000 | H33: NO | I33: YES | J33: 2020-05-21
A34: Ticor Title | B34: TI | C34: GARDNERVILLE | D34: RLT | E34: VACANT LAND | F34: 946741 | G34: 295000 | H34: NO | I34: YES | J34: 2020-05-28
A35: Ticor Title | B35: TI | C35: CARSON CITY | D35: DKD | E35: SINGLE FAM RES. | F35: 946640 | G35: 410000 | H35: NO | I35: YES | J35: 2020-05-26
A36: Ticor Title | B36: TI | C36: GARDNERVILLE | D36: RLT | E36: SINGLE FAM RES. | F36: 946503 | G36: 324000 | H36: NO | I36: YES | J36: 2020-05-22
A37: Ticor Title | B37: TI | C37: GARDNERVILLE | D37: RLT | E37: SINGLE FAM RES. | F37: 945560 | G37: 318000 | H37: NO | I37: YES | J37: 2020-05-04
A38: Ticor Title | B38: TI | C38: GARDNERVILLE | D38: RLT | E38: SINGLE FAM RES. | F38: 945538 | G38: 675000 | H38: NO | I38: YES | J38: 2020-05-04
A39: Ticor Title | B39: TI | C39: GARDNERVILLE | D39: RLT | E39: SINGLE FAM RES. | F39: 945485 | G39: 290000 | H39: NO | I39: YES | J39: 2020-05-01
A40: Ticor Title | B40: TI | C40: GARDNERVILLE | D40: RLT | E40: SINGLE FAM RES. | F40: 946788 | G40: 335000 | H40: NO | I40: YES | J40: 2020-05-29
A41: Ticor Title | B41: TI | C41: GARDNERVILLE | D41: RLT | E41: SINGLE FAM RES. | F41: 945641 | G41: 375000 | H41: NO | I41: YES | J41: 2020-05-05
A42: Ticor Title | B42: TI | C42: GARDNERVILLE | D42: RLT | E42: SINGLE FAM RES. | F42: 946500 | G42: 820000 | H42: NO | I42: YES | J42: 2020-05-22
A43: Ticor Title | B43: TI | C43: LAKESIDE | D43: JN | E43: SINGLE FAM RES. | F43: 946379 | G43: 387900 | H43: NO | I43: YES | J43: 2020-05-20
A44: Ticor Title | B44: TI | C44: CARSON CITY | D44: DKD | E44: SINGLE FAM RES. | F44: 945718 | G44: 450000 | H44: NO | I44: YES | J44: 2020-05-06
A45: Ticor Title | B45: TI | C45: GARDNERVILLE | D45: RLT | E45: SINGLE FAM RES. | F45: 946617 | G45: 485500 | H45: NO | I45: YES | J45: 2020-05-26
A46: Ticor Title | B46: TI | C46: INCLINE | D46: SLP | E46: CONDO/TWNHSE | F46: 946146 | G46: 308164 | H46: NO | I46: YES | J46: 2020-05-15
A47: Ticor Title | B47: TI | C47: GARDNERVILLE | D47: RLT | E47: SINGLE FAM RES. | F47: 945716 | G47: 325000 | H47: NO | I47: YES | J47: 2020-05-06
A48: Ticor Title | B48: TI | C48: GARDNERVILLE | D48: RLT | E48: SINGLE FAM RES. | F48: 946218 | G48: 324000 | H48: NO | I48: YES | J48: 2020-05-18
A49: Ticor Title | B49: TI | C49: KIETZKE | D49: ACM | E49: SINGLE FAM RES. | F49: 946005 | G49: 1500000 | H49: NO | I49: YES | J49: 2020-05-13
A50: Ticor Title | B50: TI | C50: CARSON CITY | D50: DKD | E50: SINGLE FAM RES. | F50: 946317 | G50: 330000 | H50: NO | I50: YES | J50: 2020-05-19
A51: Ticor Title | B51: TI | C51: GARDNERVILLE | D51: RLT | E51: SINGLE FAM RES. | F51: 945649 | G51: 410000 | H51: NO | I51: YES | J51: 2020-05-05
A52: Ticor Title | B52: TI | C52: GARDNERVILLE | D52: RLT | E52: SINGLE FAM RES. | F52: 946843 | G52: 390000 | H52: NO | I52: YES | J52: 2020-05-29
A53: Ticor Title | B53: TI | C53: LAKESIDE | D53: SL | E53: SINGLE FAM RES. | F53: 946155 | G53: 368000 | H53: NO | I53: YES | J53: 2020-05-15
A54: Ticor Title | B54: TI | C54: LAKESIDE | D54: JN | E54: VACANT LAND | F54: 946127 | G54: 69000 | H54: NO | I54: YES | J54: 2020-05-15
A55: Toiyabe Title | B55: TT | C55: MCCARRAN | D55: JH | E55: MOBILE HOME | F55: 946585 | G55: 225000 | H55: NO | I55: YES | J55: 2020-05-26
A56: Western Title | B56: WE | C56: GARDNERVILLE | D56: ARJ | E56: VACANT LAND | F56: 945828 | G56: 260000 | H56: NO | I56: YES | J56: 2020-05-08
A57: Western Title | B57: WE | C57: GARDNERVILLE | D57: SLA | E57: SINGLE FAM RES. | F57: 945468 | G57: 537000 | H57: NO | I57: YES | J57: 2020-05-01
A58: Western Title | B58: WE | C58: CARSON CITY | D58: AMG | E58: CONDO/TWNHSE | F58: 946506 | G58: 145000 | H58: NO | I58: YES | J58: 2020-05-22
A59: Western Title | B59: WE | C59: KIETZKE | D59: SAB | E59: SINGLE FAM RES. | F59: 946521 | G59: 250000 | H59: NO | I59: YES | J59: 2020-05-22
A60: Western Title | B60: WE | C60: GARDNERVILLE | D60: ARJ | E60: SINGLE FAM RES. | F60: 946850 | G60: 469000 | H60: NO | I60: YES | J60: 2020-05-29
A61: Western Title | B61: WE | C61: GARDNERVILLE | D61: WLD | E61: SINGLE FAM RES. | F61: 945701 | G61: 535000 | H61: NO | I61: YES | J61: 2020-05-06
A62: Western Title | B62: WE | C62: GARDNERVILLE | D62: ARJ | E62: SINGLE FAM RES. | F62: 945721 | G62: 914213.44 | H62: NO | I62: YES | J62: 2020-05-06
A63: Western Title | B63: WE | C63: GARDNERVILLE | D63: ARJ | E63: SINGLE FAM RES. | F63: 946148 | G63: 312000 | H63: NO | I63: YES | J63: 2020-05-15
A64: Western Title | B64: WE | C64: GARDNERVILLE | D64: SLA | E64: SINGLE FAM RES. | F64: 945813 | G64: 310000 | H64: NO | I64: YES | J64: 2020-05-08
A65: Western Title | B65: WE | C65: GARDNERVILLE | D65: TEA | E65: SINGLE FAM RES. | F65: 946141 | G65: 386400 | H65: NO | I65: YES | J65: 2020-05-15
A66: Western Title | B66: WE | C66: CARSON CITY | D66: AMG | E66: SINGLE FAM RES. | F66: 946795 | G66: 668000 | H66: NO | I66: YES | J66: 2020-05-29
A67: Western Title | B67: WE | C67: GARDNERVILLE | D67: WLD | E67: SINGLE FAM RES. | F67: 946743 | G67: 320000 | H67: NO | I67: YES | J67: 2020-05-28
A68: Western Title | B68: WE | C68: GARDNERVILLE | D68: TEA | E68: CONDO/TWNHSE | F68: 946737 | G68: 349196 | H68: YES | I68: YES | J68: 2020-05-28
A69: Western Title | B69: WE | C69: GARDNERVILLE | D69: SLA | E69: VACANT LAND | F69: 946071 | G69: 215000 | H69: NO | I69: YES | J69: 2020-05-15
A70: Western Title | B70: WE | C70: GARDNERVILLE | D70: TEA | E70: SINGLE FAM RES. | F70: 946827 | G70: 444330 | H70: YES | I70: YES | J70: 2020-05-29
A71: Western Title | B71: WE | C71: GARDNERVILLE | D71: TEA | E71: SINGLE FAM RES. | F71: 945995 | G71: 427348 | H71: YES | I71: YES | J71: 2020-05-13
A72: Western Title | B72: WE | C72: GARDNERVILLE | D72: ARJ | E72: SINGLE FAM RES. | F72: 946157 | G72: 377000 | H72: NO | I72: YES | J72: 2020-05-15
A73: Western Title | B73: WE | C73: GARDNERVILLE | D73: WLD | E73: SINGLE FAM RES. | F73: 946484 | G73: 491000 | H73: NO | I73: YES | J73: 2020-05-22
A74: Western Title | B74: WE | C74: GARDNERVILLE | D74: SLA | E74: VACANT LAND | F74: 946450 | G74: 83000 | H74: NO | I74: YES | J74: 2020-05-21
A75: Western Title | B75: WE | C75: GARDNERVILLE | D75: ARJ | E75: SINGLE FAM RES. | F75: 946034 | G75: 300000 | H75: NO | I75: YES | J75: 2020-05-14
A76: Western Title | B76: WE | C76: GARDNERVILLE | D76: TEA | E76: SINGLE FAM RES. | F76: 945565 | G76: 402000 | H76: YES | I76: YES | J76: 2020-05-04
A77: Western Title | B77: WE | C77: GARDNERVILLE | D77: SLA | E77: SINGLE FAM RES. | F77: 946294 | G77: 350000 | H77: NO | I77: YES | J77: 2020-05-19
A78: Western Title | B78: WE | C78: GARDNERVILLE | D78: TEA | E78: VACANT LAND | F78: 945572 | G78: 385000 | H78: NO | I78: YES | J78: 2020-05-04
A79: Western Title | B79: WE | C79: GARDNERVILLE | D79: TEA | E79: VACANT LAND | F79: 946333 | G79: 171000 | H79: NO | I79: YES | J79: 2020-05-20
A80: Western Title | B80: WE | C80: GARDNERVILLE | D80: TEA | E80: CONDO/TWNHSE | F80: 946832 | G80: 344825 | H80: YES | I80: YES | J80: 2020-05-29
A81: Western Title | B81: WE | C81: GARDNERVILLE | D81: TEA | E81: SINGLE FAM RES. | F81: 945498 | G81: 469000 | H81: NO | I81: YES | J81: 2020-05-01
A82: Western Title | B82: WE | C82: GARDNERVILLE | D82: TEA | E82: CONDO/TWNHSE | F82: 945637 | G82: 424000 | H82: YES | I82: YES | J82: 2020-05-05
A83: Western Title | B83: WE | C83: GARDNERVILLE | D83: ARJ | E83: VACANT LAND | F83: 946846 | G83: 520000 | H83: NO | I83: YES | J83: 2020-05-29
A84: Western Title | B84: WE | C84: GARDNERVILLE | D84: SLA | E84: SINGLE FAM RES. | F84: 945972 | G84: 1000000 | H84: NO | I84: YES | J84: 2020-05-13
A85: Western Title | B85: WE | C85: GARDNERVILLE | D85: TEA | E85: VACANT LAND | F85: 946446 | G85: 83000 | H85: NO | I85: YES | J85: 2020-05-21

Sheet LOANS_LIST (hidden)
A1: FULLNAME | B1: RECBY | C1: TYPELOAN | D1: APN | E1: DOCNUM | F1: AMOUNT | G1: RECDATE | H1: LENDER | L1: 171
A2: Driggs Title Agency | B2: DTA | C2: FHA | D2: 1220-22-110-016 | E2: 946775 | F2: 712500 | G2: 2020-05-29 | H2: OPEN MORTGAGE LLC
A3: First American Title | B3: FA | C3: CONVENTIONAL | D3: 1220-16-210-189 | E3: 945796 | F3: 180000 | G3: 2020-05-08 | H3: PRIMELENDING
A4: First American Title | B4: FA | C4: CONVENTIONAL | D4: 1320-02-001-026 | E4: 945804 | F4: 340000 | G4: 2020-05-08 | H4: GUILD MORTGAGE COMPANY
A5: First American Title | B5: FA | C5: CONVENTIONAL | D5: 1320-02-002-017 | E5: 946732 | F5: 303500 | G5: 2020-05-28 | H5: GUILD MORTGAGE COMPANY
A6: First American Title | B6: FA | C6: VA | D6: 1220-15-410-032 | E6: 945857 | F6: 281441 | G6: 2020-05-11 | H6: GUILD MORTGAGE COMPANY
A7: First American Title | B7: FA | C7: CONVENTIONAL | D7: 1319-03-811-008 | E7: 946458 | F7: 296000 | G7: 2020-05-21 | H7: AMERICAN PACIFIC MORTGAGE CORPORATION
A8: First American Title | B8: FA | C8: CONVENTIONAL | D8: 1220-16-310-093 | E8: 946342 | F8: 175000 | G8: 2020-05-20 | H8: PRIMELENDING
A9: First American Title | B9: FA | C9: VA | D9: 1420-28-110-042 | E9: 946821 | F9: 310843 | G9: 2020-05-29 | H9: GUILD MORTGAGE COMPANY
A10: First American Title | B10: FA | C10: CONVENTIONAL | D10: 1420-35-411-009 | E10: 945626 | F10: 230000 | G10: 2020-05-05 | H10: EL DORADO SAVINGS BANK
A11: First American Title | B11: FA | C11: CONVENTIONAL | D11: 1220-22-310-093 | E11: 946185 | F11: 258000 | G11: 2020-05-18 | H11: NAVY FEDERAL CREDIT UNION
A12: First American Title | B12: FA | C12: CONVENTIONAL | D12: 1320-27-002-022 | E12: 946682 | F12: 425000 | G12: 2020-05-27 | H12: GUILD MORTGAGE COMPANY
A13: First American Title | B13: FA | C13: CONVENTIONAL | D13: 1220-22-111-007 | E13: 946589 | F13: 261000 | G13: 2020-05-26 | H13: US BANK NA
A14: First American Title | B14: FA | C14: CONVENTIONAL | D14: 1219-03-002-082 | E14: 946098 | F14: 485450 | G14: 2020-05-15 | H14: GUILD MORTGAGE COMPANY
A15: First American Title | B15: FA | C15: CONVENTIONAL | D15: 1221-19-002-022 | E15: 945525 | F15: 510400 | G15: 2020-05-04 | H15: NOVA FINANCIAL & INVESTMENT CORPORATION
A16: First American Title | B16: FA | C16: CONVENTIONAL | D16: 1420-08-211-030 | E16: 946224 | F16: 334034 | G16: 2020-05-18 | H16: GUILD MORTGAGE COMPANY
A17: First American Title | B17: FA | C17: CONVENTIONAL | D17: 1420-34-112-002 | E17: 946574 | F17: 405000 | G17: 2020-05-26 | H17: US BANK NA
A18: First American Title | B18: FA | C18: CONVENTIONAL | D18: 1320-33-815-022 | E18: 946480 | F18: 215000 | G18: 2020-05-22 | H18: US BANK NA
A19: First American Title | B19: FA | C19: CONVENTIONAL | D19: 1220-22-410-118 | E19: 945547 | F19: 44760 | G19: 2020-05-04 | H19: WELLS FARGO BANK NA
A20: First American Title | B20: FA | C20: CONVENTIONAL | D20: 1419-26-310-009 | E20: 946507 | F20: 477000 | G20: 2020-05-22 | H20: GUILD MORTGAGE COMPANY
A21: First American Title | B21: FA | C21: CONVENTIONAL | D21: 1220-04-513-013 | E21: 946486 | F21: 219000 | G21: 2020-05-22 | H21: GREATER NEVADA MORTGAGE
A22: First American Title | B22: FA | C22: CONVENTIONAL | D22: 1219-03-002-079 | E22: 945991 | F22: 455700 | G22: 2020-05-13 | H22: GUILD MORTGAGE COMPANY
A23: First American Title | B23: FA | C23: VA | D23: 1321-29-002-011 | E23: 946712 | F23: 271651 | G23: 2020-05-28 | H23: PRIMELENDING
A24: First American Title | B24: FA | C24: CONVENTIONAL | D24: 1320-33-811-042 | E24: 946798 | F24: 225100 | G24: 2020-05-29 | H24: GUILD MORTGAGE COMPANY
A25: First American Title | B25: FA | C25: CONVENTIONAL | D25: 1420-18-710-001 | E25: 946784 | F25: 379000 | G25: 2020-05-29 | H25: GUILD MORTGAGE COMPANY
A26: First American Title | B26: FA | C26: CONVENTIONAL | D26: 1220-21-810-178 | E26: 945709 | F26: 224500 | G26: 2020-05-06 | H26: SUN WEST MORTGAGE COMPANY INC
A27: First Centennial Title | B27: FC | C27: CONVENTIONAL | D27: 1420-28-811-042 | E27: 946511 | F27: 217000 | G27: 2020-05-22 | H27: GREATER NEVADA MORTGAGE
A28: First Centennial Title | B28: FC | C28: CONVENTIONAL | D28: 1318-23-213-006 | E28: 946134 | F28: 420000 | G28: 2020-05-15 | H28: LENDUS LLC
A29: First Centennial Title | B29: FC | C29: CONVENTIONAL | D29: 1220-09-410-005 | E29: 946271 | F29: 261000 | G29: 2020-05-19 | H29: WELLS FARGO BANK NA
A30: First Centennial Title | B30: FC | C30: CONVENTIONAL | D30: 1418-10-710-017 | E30: 946307 | F30: 390000 | G30: 2020-05-19 | H30: WELCOME HOME FUNDING LLC
A31: First Centennial Title | B31: FC | C31: CONVENTIONAL | D31: 1420-33-810-016 | E31: 946353 | F31: 143200 | G31: 2020-05-20 | H31: GREATER NEVADA MORTGAGE
A32: First Centennial Title | B32: FC | C32: CONVENTIONAL | D32: 1220-16-210-108 | E32: 945606 | F32: 369600 | G32: 2020-05-05 | H32: GREATER NEVADA MORTGAGE
A33: First Centennial Title | B33: FC | C33: CONVENTIONAL | D33: 1318-23-810-012 | E33: 945986 | F33: 425600 | G33: 2020-05-13 | H33: LENDUS LLC
A34: First Centennial Title | B34: FC | C34: CONVENTIONAL | D34: 1420-33-602-005 | E34: 945979 | F34: 169000 | G34: 2020-05-13 | H34: GREATER NEVADA MORTGAGE
A35: First Centennial Title | B35: FC | C35: CREDIT LINE | D35: 1220-17-615-005 | E35: 945614 | F35: 25000 | G35: 2020-05-05 | H35: GREATER NEVADA CREDIT UNION
A36: First Centennial Title | B36: FC | C36: CONVENTIONAL | D36: 1320-32-710-019 | E36: 946310 | F36: 406000 | G36: 2020-05-19 | H36: WELCOME HOME FUNDING LLC
A37: First Centennial Title | B37: FC | C37: CONSTRUCTION | D37: 1321-29-002-029 | E37: 946588 | F37: 372000 | G37: 2020-05-26 | H37: MOUNTAIN AMERICA FEDERAL CREDIT UNION
A38: First Centennial Title | B38: FC | C38: CONVENTIONAL | D38: 1220-24-301-003 | E38: 946139 | F38: 325000 | G38: 2020-05-15 | H38: GREATER NEVADA MORTGAGE
A39: First Centennial Title | B39: FC | C39: CONVENTIONAL | D39: 1320-33-814-011 | E39: 946558 | F39: 240500 | G39: 2020-05-26 | H39: NEW AMERICAN FUNDING
A40: First Centennial Title | B40: FC | C40: CONVENTIONAL | D40: 1420-27-701-014 | E40: 946230 | F40: 233000 | G40: 2020-05-18 | H40: GREATER NEVADA MORTGAGE
A41: First Centennial Title | B41: FC | C41: FHA | D41: 1022-17-002-018 | E41: 946226 | F41: 275004 | G41: 2020-05-18 | H41: AMERICAN FINANCIAL RESOURCES INC
A42: First Centennial Title | B42: FC | C42: CONVENTIONAL | D42: 1320-30-813-009 | E42: 946576 | F42: 113000 | G42: 2020-05-26 | H42: GREATER NEVADA MORTGAGE
A43: First Centennial Title | B43: FC | C43: CONVENTIONAL | D43: 1219-03-002-100 | E43: 946273 | F43: 644000 | G43: 2020-05-19 | H43: UNITED FEDERAL CREDIT UNION
A44: First Centennial Title | B44: FC | C44: CONVENTIONAL | D44: 1319-10-111-014 | E44: 946363 | F44: 515000 | G44: 2020-05-20 | H44: WELLS FARGO BANK NA
A45: First Centennial Title | B45: FC | C45: CONVENTIONAL | D45: 1320-30-812-012 | E45: 946592 | F45: 115000 | G45: 2020-05-26 | H45: GUILD MORTGAGE COMPANY
A46: First Centennial Title | B46: FC | C46: VA | D46: 1318-23-215-018 | E46: 946186 | F46: 359450 | G46: 2020-05-18 | H46: CARDINAL FINANCIAL COMPANY
A47: First Centennial Title | B47: FC | C47: CONVENTIONAL | D47: 1220-01-001-015 | E47: 945889 | F47: 292000 | G47: 2020-05-11 | H47: GREATER NEVADA MORTGAGE
A48: First Centennial Title | B48: FC | C48: CONVENTIONAL | D48: 1319-10-310-009 | E48: 945456 | F48: 410000 | G48: 2020-05-01 | H48: GUILD MORTGAGE COMPANY
A49: First Centennial Title | B49: FC | C49: HOME EQUITY | D49: 1219-04-001-023 | E49: 945733 | F49: 190000 | G49: 2020-05-06 | H49: MOUNTAIN AMERICA FEDERAL CREDIT UNION
A50: First Centennial Title | B50: FC | C50: VA | D50: 1318-23-212-008 | E50: 945715 | F50: 380000 | G50: 2020-05-06 | H50: MOVEMENT MORTGAGE
A51: First Centennial Title | B51: FC | C51: CONVENTIONAL | D51: 1420-33-610-004 | E51: 945957 | F51: 275000 | G51: 2020-05-13 | H51: SYNERGY HOME MORTGAGE LLC
A52: First Centennial Title | B52: FC | C52: CONVENTIONAL | D52: 1420-28-211-025 | E52: 945803 | F52: 343000 | G52: 2020-05-08 | H52: GREATER NEVADA MORTGAGE
A53: First Centennial Title | B53: FC | C53: CONVENTIONAL | D53: 1321-33-001-024 | E53: 946684 | F53: 257550 | G53: 2020-05-27 | H53: GREATER NEVADA MORTGAGE
A54: First Centennial Title | B54: FC | C54: CONVENTIONAL | D54: 1320-30-112-016 | E54: 946686 | F54: 244000 | G54: 2020-05-27 | H54: SUN WEST MORTGAGE COMPANY INC
A55: First Centennial Title | B55: FC | C55: CONVENTIONAL | D55: 1420-07-610-003 | E55: 946837 | F55: 259000 | G55: 2020-05-29 | H55: UNITED FEDERAL CREDIT UNION
A56: First Centennial Title | B56: FC | C56: CONVENTIONAL | D56: 1320-29-213-006 | E56: 945806 | F56: 207000 | G56: 2020-05-08 | H56: GREATER NEVADA MORTGAGE
A57: First Centennial Title | B57: FC | C57: CONVENTIONAL | D57: 1320-33-811-013 | E57: 946819 | F57: 254000 | G57: 2020-05-29 | H57: ONE NEVADA CREDIT UNION
A58: First Centennial Title | B58: FC | C58: CONVENTIONAL | D58: 1420-29-810-034 | E58: 945854 | F58: 412000 | G58: 2020-05-11 | H58: WELLS FARGO BANK NA
A59: First Centennial Title | B59: FC | C59: CONVENTIONAL | D59: 1220-01-001-012 | E59: 946825 | F59: 434000 | G59: 2020-05-29 | H59: EVERGREEN MONEYSOURCE MORTGAGE COMPANY
A60: First Centennial Title | B60: FC | C60: CONVENTIONAL | D60: 1220-16-710-031 | E60: 946723 | F60: 111500 | G60: 2020-05-28 | H60: GREATER NEVADA MORTGAGE
A61: First Centennial Title | B61: FC | C61: CONVENTIONAL | D61: 1420-08-217-017 | E61: 945874 | F61: 288000 | G61: 2020-05-11 | H61: GUILD MORTGAGE COMPANY
A62: First Centennial Title | B62: FC | C62: VA | D62: 1420-33-312-018 | E62: 945713 | F62: 380000 | G62: 2020-05-06 | H62: GUILD MORTGAGE COMPANY
A63: First Centennial Title | B63: FC | C63: CONVENTIONAL | D63: 1420-28-310-016 | E63: 946704 | F63: 378750 | G63: 2020-05-28 | H63: WELLS FARGO BANK NA
A64: First Centennial Title | B64: FC | C64: CONVENTIONAL | D64: 1219-04-001-023 | E64: 945732 | F64: 510000 | G64: 2020-05-06 | H64: MOUNTAIN AMERICA FEDERAL CREDIT UNION
A65: First Centennial Title | B65: FC | C65: CONVENTIONAL | D65: 1420-34-303-016 | E65: 945898 | F65: 197000 | G65: 2020-05-11 | H65: GUILD MORTGAGE COMPANY
A66: Signature Title | B66: SIG | C66: CONVENTIONAL | D66: 1418-34-210-023 | E66: 946830 | F66: 1409500 | G66: 2020-05-29 | H66: WELLS FARGO BANK NA
A67: Signature Title | B67: SIG | C67: CONVENTIONAL | D67: 1318-10-311-002 | E67: 945993 | F67: 305700 | G67: 2020-05-13 | H67: GUILD MORTGAGE COMPANY
A68: Signature Title | B68: SIG | C68: CONVENTIONAL | D68: 1318-09-810-029 | E68: 945555 | F68: 589000 | G68: 2020-05-04 | H68: FAIRWAY INDEPENDENT MORTGAGE CORPORATION
A69: Signature Title | B69: SIG | C69: CONVENTIONAL | D69: 1420-34-501-030 | E69: 946615 | F69: 498100 | G69: 2020-05-26 | H69: MOVEMENT MORTGAGE LLC
A70: Signature Title | B70: SIG | C70: CONVENTIONAL | D70: 1219-23-001-046 | E70: 946297 | F70: 1300000 | G70: 2020-05-19 | H70: NORTHWEST FARM CREDIT SERVICES
A71: Signature Title | B71: SIG | C71: CONVENTIONAL | D71: 1420-34-401-015 | E71: 946365 | F71: 227300 | G71: 2020-05-20 | H71: PRIMARY RESIDENTIAL MORTGAGE INC
A72: Stewart Title | B72: ST | C72: CONVENTIONAL | D72: 1420-27-401-006 | E72: 946348 | F72: 231000 | G72: 2020-05-20 | H72: BAY EQUITY LLC
A73: Stewart Title | B73: ST | C73: CONVENTIONAL | D73: 1420-06-310-001 | E73: 946735 | F73: 124592 | G73: 2020-05-28 | H73: QUICKEN LOANS INC
A74: Ticor Title | B74: TI | C74: CONVENTIONAL | D74: 1319-18-212-009 | E74: 946618 | F74: 256000 | G74: 2020-05-26 | H74: EL DORADO SAVINGS BANK
A75: Ticor Title | B75: TI | C75: CONVENTIONAL | D75: 1121-05-513-021 | E75: 946502 | F75: 75000 | G75: 2020-05-22 | H75: GREATER NEVADA MORTGAGE
A76: Ticor Title | B76: TI | C76: CONVENTIONAL | D76: 1420-35-101-036 | E76: 945692 | F76: 255000 | G76: 2020-05-06 | H76: GREATER NEVADA MORTGAGE
A77: Ticor Title | B77: TI | C77: CONVENTIONAL | D77: 1221-06-001-012 | E77: 946630 | F77: 320500 | G77: 2020-05-26 | H77: GREATER NEVADA MORTGAGE
A78: Ticor Title | B78: TI | C78: CONVENTIONAL | D78: 1320-33-716-032 | E78: 946695 | F78: 125000 | G78: 2020-05-27 | H78: EQUITY PRIME MORTGAGE LLC
A79: Ticor Title | B79: TI | C79: CONVENTIONAL | D79: 1420-28-810-010 | E79: 946710 | F79: 272000 | G79: 2020-05-28 | H79: GUILD MORTGAGE COMPANY
A80: Ticor Title | B80: TI | C80: CONVENTIONAL | D80: 1220-16-110-013 | E80: 946716 | F80: 212500 | G80: 2020-05-28 | H80: GREATER NEVADA MORTGAGE
A81: Ticor Title | B81: TI | C81: CONVENTIONAL | D81: 1220-01-001-003 | E81: 946781 | F81: 433600 | G81: 2020-05-29 | H81: OMEGA MORTGAGE GROUP
A82: Ticor Title | B82: TI | C82: FHA | D82: 1420-07-713-014 | E82: 945537 | F82: 253154 | G82: 2020-05-04 | H82: GREATER NEVADA MORTGAGE
A83: Ticor Title | B83: TI | C83: VA | D83: 1420-34-301-003 | E83: 945574 | F83: 405000 | G83: 2020-05-04 | H83: EVERGREEN MONEYSOURCE MORTGAGE COMPANY
A84: Ticor Title | B84: TI | C84: CONVENTIONAL | D84: 1419-11-002-058 | E84: 945610 | F84: 441500 | G84: 2020-05-05 | H84: GUILD MORTGAGE COMPANY
A85: Ticor Title | B85: TI | C85: HARD MONEY | D85: 1320-23-002-062 | E85: 946452 | F85: 675000 | G85: 2020-05-21 | H85: SIMON PROPERTIES LLC
A86: Ticor Title | B86: TI | C86: CONVENTIONAL | D86: 1319-30-628-008 | E86: 946742 | F86: 246400 | G86: 2020-05-28 | H86: CARDINAL FINANCIAL COMPANY
A87: Ticor Title | B87: TI | C87: CONVENTIONAL | D87: 1220-04-515-027 | E87: 946316 | F87: 246100 | G87: 2020-05-19 | H87: GUILD MORTGAGE COMPANY
A88: Ticor Title | B88: TI | C88: CONVENTIONAL | D88: 1318-23-813-005 | E88: 946614 | F88: 1050000 | G88: 2020-05-26 | H88: BANK OF AMERICA
A89: Ticor Title | B89: TI | C89: VA | D89: 1320-32-211-009 | E89: 946835 | F89: 479363 | G89: 2020-05-29 | H89: NAVY FEDERAL CREDIT UNION
A90: Ticor Title | B90: TI | C90: CONVENTIONAL | D90: 1220-22-210-043 | E90: 946337 | F90: 224000 | G90: 2020-05-20 | H90: FINANCE OF AMERICA MORTGAGE LLC
A91: Ticor Title | B91: TI | C91: VA | D91: 1420-28-110-036 | E91: 945729 | F91: 429396 | G91: 2020-05-06 | H91: CARDINAL FINANCIAL COMPANY
A92: Ticor Title | B92: TI | C92: VA | D92: 1220-22-210-130 | E92: 945666 | F92: 276402 | G92: 2020-05-06 | H92: PRIMELENDING
A93: Ticor Title | B93: TI | C93: CONVENTIONAL | D93: 1220-09-810-066 | E93: 945450 | F93: 264000 | G93: 2020-05-01 | H93: FINANCE OF AMERICA MORTGAGE LLC
A94: Ticor Title | B94: TI | C94: CONVENTIONAL | D94: 1220-21-810-179 | E94: 945712 | F94: 220000 | G94: 2020-05-06 | H94: FINANCE OF AMERICA MORTGAGE LLC
A95: Ticor Title | B95: TI | C95: CONVENTIONAL | D95: 1420-18-510-039 | E95: 945688 | F95: 241500 | G95: 2020-05-06 | H95: GREATER NEVADA MORTGAGE
A96: Ticor Title | B96: TI | C96: PUD | D96: 1319-03-811-002 | E96: 945730 | F96: 310000 | G96: 2020-05-06 | H96: CARDINAL FINANCIAL COMPANY
A97: Ticor Title | B97: TI | C97: CONVENTIONAL | D97: 1121-05-516-021 | E97: 945913 | F97: 190000 | G97: 2020-05-12 | H97: GUILD MORTGAGE COMPANY
A98: Ticor Title | B98: TI | C98: CONVENTIONAL | D98: 1420-18-214-068 | E98: 946216 | F98: 211250 | G98: 2020-05-18 | H98: GUILD MORTGAGE COMPANY
A99: Ticor Title | B99: TI | C99: CONVENTIONAL | D99: 1220-25-102-002 | E99: 945631 | F99: 196000 | G99: 2020-05-05 | H99: FINANCE OF AMERICA MORTGAGE LLC
A100: Ticor Title | B100: TI | C100: CONVENTIONAL | D100: 1121-35-002-055 | E100: 946221 | F100: 492760 | G100: 2020-05-18 | H100: GUILD MORTGAGE COMPANY
A101: Ticor Title | B101: TI | C101: CONVENTIONAL | D101: 1220-15-610-004 | E101: 945958 | F101: 255400 | G101: 2020-05-13 | H101: PRIMELENDING
A102: Ticor Title | B102: TI | C102: CONVENTIONAL | D102: 1220-15-110-071 | E102: 946303 | F102: 312000 | G102: 2020-05-19 | H102: OMEGA MORTGAGE GROUP
A103: Ticor Title | B103: TI | C103: CONVENTIONAL | D103: 1320-30-311-039 | E103: 946398 | F103: 350600 | G103: 2020-05-20 | H103: FIRST BANK
A104: Ticor Title | B104: TI | C104: CONVENTIONAL | D104: 1420-28-310-028 | E104: 945510 | F104: 326182 | G104: 2020-05-04 | H104: UNITED FEDERAL CREDIT UNION
A105: Ticor Title | B105: TI | C105: CONVENTIONAL | D105: 1220-03-311-048 | E105: 945930 | F105: 159000 | G105: 2020-05-12 | H105: WELLS FARGO BANK NA
A106: Ticor Title | B106: TI | C106: FHA | D106: 1220-21-810-106 | E106: 946032 | F106: 279165 | G106: 2020-05-14 | H106: FINANCE OF AMERICA MORTGAGE LLC
A107: Ticor Title | B107: TI | C107: CONVENTIONAL | D107: 1022-05-000-005 | E107: 945530 | F107: 187000 | G107: 2020-05-04 | H107: GREATER NEVADA MORTGAGE
A108: Ticor Title | B108: TI | C108: CONVENTIONAL | D108: 1220-21-610-017 | E108: 946286 | F108: 261200 | G108: 2020-05-19 | H108: GUILD MORTGAGE COMPANY
A109: Ticor Title | B109: TI | C109: CONVENTIONAL | D109: 1420-33-810-039 | E109: 945894 | F109: 364000 | G109: 2020-05-11 | H109: NEW AMERICAN FUNDING
A110: Ticor Title | B110: TI | C110: CONVENTIONAL | D110: 1022-10-001-031 | E110: 946208 | F110: 164500 | G110: 2020-05-18 | H110: GREATER NEVADA MORTGAGE
A111: Ticor Title | B111: TI | C111: CONVENTIONAL | D111: 1221-13-000-002 | E111: 945903 | F111: 460950 | G111: 2020-05-11 | H111: CEFCU
A112: Ticor Title | B112: TI | C112: CONVENTIONAL | D112: 1420-26-401-010 | E112: 946312 | F112: 384000 | G112: 2020-05-19 | H112: FINANCE OF AMERICA MORTGAGE LLC
A113: Ticor Title | B113: TI | C113: CONVENTIONAL | D113: 1420-29-714-007 | E113: 946090 | F113: 360000 | G113: 2020-05-15 | H113: PRIMELENDING
A114: Ticor Title | B114: TI | C114: CONVENTIONAL | D114: 1220-21-810-240 | E114: 945877 | F114: 256800 | G114: 2020-05-11 | H114: FINANCE OF AMERICA MORTGAGE LLC
A115: Ticor Title | B115: TI | C115: CONVENTIONAL | D115: 1420-28-410-015 | E115: 945998 | F115: 155500 | G115: 2020-05-13 | H115: CARDINAL FINANCIAL COMPANY
A116: Ticor Title | B116: TI | C116: CONVENTIONAL | D116: 1318-15-702-003 | E116: 946679 | F116: 337000 | G116: 2020-05-27 | H116: FINANCE OF AMERICA MORTGAGE LLC
A117: Toiyabe Title | B117: TT | C117: CONVENTIONAL | D117: 1320-30-512-008 | E117: 945694 | F117: 300000 | G117: 2020-05-06 | H117: GUILD MORTGAGE COMPANY
A118: Western Title | B118: WE | C118: CONVENTIONAL | D118: 1220-04-510-021 | E118: 946184 | F118: 210000 | G118: 2020-05-18 | H118: US BANK NA
A119: Western Title | B119: WE | C119: CONVENTIONAL | D119: 1221-18-401-007 | E119: 946187 | F119: 510400 | G119: 2020-05-18 | H119: US BANK NA
A120: Western Title | B120: WE | C120: CONVENTIONAL | D120: 1320-29-610-061 | E120: 946692 | F120: 449000 | G120: 2020-05-27 | H120: WELLS FARGO BANK NA
A121: Western Title | B121: WE | C121: CONVENTIONAL | D121: 1420-28-113-010 | E121: 945834 | F121: 237000 | G121: 2020-05-08 | H121: NEVADA STATE BANK
A122: Western Title | B122: WE | C122: CONVENTIONAL | D122: 1220-09-412-003 | E122: 945634 | F122: 325000 | G122: 2020-05-05 | H122: FINANCE OF AMERICA MORTGAGE LLC
A123: Western Title | B123: WE | C123: CONVENTIONAL | D123: 1220-17-110-003 | E123: 945568 | F123: 482500 | G123: 2020-05-04 | H123: FINANCE OF AMERICA MORTGAGE LLC
A124: Western Title | B124: WE | C124: CONVENTIONAL | D124: 1320-32-114-016 | E124: 945699 | F124: 273000 | G124: 2020-05-06 | H124: LOANDEPOT COM LLC
A125: Western Title | B125: WE | C125: CONVENTIONAL | D125: 1220-15-410-001 | E125: 945706 | F125: 221000 | G125: 2020-05-06 | H125: NEVADA STATE BANK
A126: Western Title | B126: WE | C126: CONVENTIONAL | D126: 1220-24-501-002 | E126: 946783 | F126: 394000 | G126: 2020-05-29 | H126: GUILD MORTGAGE COMPANY
A127: Western Title | B127: WE | C127: CONVENTIONAL | D127: 1320-30-411-020 | E127: 946754 | F127: 614000 | G127: 2020-05-28 | H127: GREATER NEVADA MORTGAGE
A128: Western Title | B128: WE | C128: CONVENTIONAL | D128: 1420-34-310-028 | E128: 945799 | F128: 250000 | G128: 2020-05-08 | H128: DIGNIFIED HOME LOANS LLC
A129: Western Title | B129: WE | C129: CONVENTIONAL | D129: 1220-15-210-015 | E129: 946706 | F129: 360000 | G129: 2020-05-28 | H129: PRIMELENDING
A130: Western Title | B130: WE | C130: VA | D130: 1022-29-411-013 | E130: 946820 | F130: 362289 | G130: 2020-05-29 | H130: GUILD MORTGAGE COMPANY
A131: Western Title | B131: WE | C131: CONVENTIONAL | D131: 1220-09-414-010 | E131: 946108 | F131: 348500 | G131: 2020-05-15 | H131: GREATER NEVADA MORTGAGE
A132: Western Title | B132: WE | C132: CONVENTIONAL | D132: 1220-03-111-021 | E132: 946107 | F132: 288600 | G132: 2020-05-15 | H132: GUILD MORTGAGE COMPANY
A133: Western Title | B133: WE | C133: CONVENTIONAL | D133: 1320-30-819-001 | E133: 945684 | F133: 190000 | G133: 2020-05-06 | H133: US BANK NA
A134: Western Title | B134: WE | C134: CONVENTIONAL | D134: 1220-22-211-013 | E134: 946103 | F134: 166000 | G134: 2020-05-15 | H134: PRIMARY RESIDENTIAL MORTGAGE INC
A135: Western Title | B135: WE | C135: CONVENTIONAL | D135: 1220-12-610-009 | E135: 945902 | F135: 850000 | G135: 2020-05-11 | H135: WELLS FARGO BANK NA
A136: Western Title | B136: WE | C136: CONVENTIONAL | D136: 1420-33-312-047 | E136: 946691 | F136: 244000 | G136: 2020-05-27 | H136: NEW AMERICAN FUNDING
A137: Western Title | B137: WE | C137: CONVENTIONAL | D137: 1420-07-813-017 | E137: 945925 | F137: 187000 | G137: 2020-05-12 | H137: PRIMELENDING
A138: Western Title | B138: WE | C138: VA | D138: 1220-22-310-095 | E138: 945923 | F138: 398848 | G138: 2020-05-12 | H138: WELLS FARGO BANK NA
A139: Western Title | B139: WE | C139: CONVENTIONAL | D139: 1320-33-212-004 | E139: 946801 | F139: 400000 | G139: 2020-05-29 | H139: PRIMARY RESIDENTIAL MORTGAGE INC
A140: Western Title | B140: WE | C140: CONVENTIONAL | D140: 1419-03-001-003 | E140: 946808 | F140: 915500 | G140: 2020-05-29 | H140: US BANK NA
A141: Western Title | B141: WE | C141: CONVENTIONAL | D141: 1220-17-617-012 | E141: 946812 | F141: 500000 | G141: 2020-05-29 | H141: FINANCE OF AMERICA MORTGAGE LLC
A142: Western Title | B142: WE | C142: CONVENTIONAL | D142: 1420-28-301-002 | E142: 945905 | F142: 246000 | G142: 2020-05-11 | H142: NEVADA STATE BANK
A143: Western Title | B143: WE | C143: CONVENTIONAL | D143: 1420-08-217-035 | E143: 946372 | F143: 295500 | G143: 2020-05-20 | H143: NEW AMERICAN FUNDING
A144: Western Title | B144: WE | C144: CONVENTIONAL | D144: 1219-11-002-016 | E144: 946593 | F144: 642000 | G144: 2020-05-26 | H144: NEW AMERICAN FUNDING
A145: Western Title | B145: WE | C145: CONVENTIONAL | D145: 1220-17-610-021 | E145: 946350 | F145: 200000 | G145: 2020-05-20 | H145: SIERRA PACIFIC MORTGAGE COMPANY INC
A146: Western Title | B146: WE | C146: CONVENTIONAL | D146: 1420-08-315-002 | E146: 946582 | F146: 284400 | G146: 2020-05-26 | H146: NEW AMERICAN FUNDING
A147: Western Title | B147: WE | C147: CONVENTIONAL | D147: 1320-33-712-009 | E147: 945963 | F147: 284000 | G147: 2020-05-13 | H147: SIERRA PACIFIC MORTGAGE COMPANY INC
A148: Western Title | B148: WE | C148: CONVENTIONAL | D148: 1220-24-302-031 | E148: 946212 | F148: 334000 | G148: 2020-05-18 | H148: FIRST GUARANTY MORTGAGE CORPORATION
A149: Western Title | B149: WE | C149: CONVENTIONAL | D149: 1320-33-818-030 | E149: 946590 | F149: 202605 | G149: 2020-05-26 | H149: WELLS FARGO BANK NA
A150: Western Title | B150: WE | C150: CONVENTIONAL | D150: 1320-30-211-007 | E150: 946564 | F150: 411000 | G150: 2020-05-26 | H150: SIERRA PACIFIC MORTGAGE COMPANY INC
A151: Western Title | B151: WE | C151: VA | D151: 1220-09-710-051 | E151: 945474 | F151: 331000 | G151: 2020-05-01 | H151: NEW AMERICAN FUNDING
A152: Western Title | B152: WE | C152: CONVENTIONAL | D152: 1021-00-001-068 | E152: 946579 | F152: 363000 | G152: 2020-05-26 | H152: SIERRA PACIFIC MORTGAGE COMPANY INC
A153: Western Title | B153: WE | C153: CONVENTIONAL | D153: 1418-34-310-009 | E153: 946515 | F153: 460000 | G153: 2020-05-22 | H153: NORTHPOINTE BANK
A154: Western Title | B154: WE | C154: CONVENTIONAL | D154: 1420-28-110-014 | E154: 946269 | F154: 330000 | G154: 2020-05-19 | H154: US BANK NA
A155: Western Title | B155: WE | C155: CONVENTIONAL | D155: 1320-33-213-004 | E155: 946361 | F155: 363800 | G155: 2020-05-20 | H155: ON Q FINANCIAL INC
A156: Western Title | B156: WE | C156: VA | D156: 1320-11-001-008 | E156: 945933 | F156: 450000 | G156: 2020-05-12 | H156: FINANCE OF AMERICA MORTGAGE LLC
A157: Western Title | B157: WE | C157: CONVENTIONAL | D157: 1220-15-310-045 | E157: 946102 | F157: 243750 | G157: 2020-05-15 | H157: GUILD MORTGAGE COMPANY
A158: Western Title | B158: WE | C158: CONVENTIONAL | D158: 1220-21-810-139 | E158: 946483 | F158: 200000 | G158: 2020-05-22 | H158: UNITED FEDERAL CREDIT UNION
A159: Western Title | B159: WE | C159: CONVENTIONAL | D159: 1420-33-111-038 | E159: 946731 | F159: 260800 | G159: 2020-05-28 | H159: NEVADA STATE BANK
A160: Western Title | B160: WE | C160: VA | D160: 1220-16-210-190 | E160: 945938 | F160: 242000 | G160: 2020-05-12 | H160: NEW AMERICAN FUNDING
A161: Western Title | B161: WE | C161: CONSTRUCTION | D161: 1220-21-111-106 | E161: 946451 | F161: 299250 | G161: 2020-05-21 | H161: ALL PRO FUNDING IV LLC
A162: Western Title | B162: WE | C162: CONSTRUCTION | D162: 1220-21-111-114 | E162: 946447 | F162: 318000 | G162: 2020-05-21 | H162: ALL PRO FUNDING IV LLC
A163: Western Title | B163: WE | C163: CONVENTIONAL | D163: 1420-34-401-009 | E163: 946432 | F163: 281000 | G163: 2020-05-21 | H163: DIGNIFIED HOME LOANS LLC
A164: Western Title | B164: WE | C164: CONVENTIONAL | D164: 1319-18-414-001 | E164: 946512 | F164: 350000 | G164: 2020-05-22 | H164: EL DORADO SAVINGS BANK
A165: Western Title | B165: WE | C165: CONVENTIONAL | D165: 1220-21-810-096 | E165: 945748 | F165: 296000 | G165: 2020-05-07 | H165: AXIA FINANCIAL LLC
A166: Western Title | B166: WE | C166: CONVENTIONAL | D166: 1220-22-210-109 | E166: 946104 | F166: 234000 | G166: 2020-05-15 | H166: PRIMARY RESIDENTIAL MORTGAGE INC
A167: Western Title | B167: WE | C167: CONVENTIONAL | D167: 1420-29-710-012 | E167: 946718 | F167: 366000 | G167: 2020-05-28 | H167: SIERRA PACIFIC MORTGAGE COMPANY INC
A168: Western Title | B168: WE | C168: CONVENTIONAL | D168: 1320-29-410-038 | E168: 946719 | F168: 358000 | G168: 2020-05-28 | H168: SIERRA PACIFIC MORTGAGE COMPANY INC
A169: Western Title | B169: WE | C169: CONVENTIONAL | D169: 1320-26-002-035 | E169: 945856 | F169: 699000 | G169: 2020-05-11 | H169: WELLS FARGO BANK NA
A170: Western Title | B170: WE | C170: CONVENTIONAL | D170: 1320-33-718-017 | E170: 946729 | F170: 354000 | G170: 2020-05-28 | H170: WELLS FARGO BANK NA
A171: Western Title | B171: WE | C171: CONVENTIONAL | D171: 1320-29-114-007 | E171: 945512 | F171: 182000 | G171: 2020-05-04 | H171: SIERRA PACIFIC MORTGAGE COMPANY INC

Sheet SALESLOANSLIST (hidden)
A1: FULLNAME | B1: RECBY | C1: AMOUNT | D1: RECDATE | E1: DOCTYPE | L1: 255
A2: Driggs Title Agency | B2: DTA | C2: 712500 | D2: 2020-05-29 | E2: Deed of Trust
A3: First American Title | B3: FA | C3: 379000 | D3: 2020-05-29 | E3: Deed of Trust
A4: First American Title | B4: FA | C4: 261000 | D4: 2020-05-26 | E4: Deed of Trust
A5: First American Title | B5: FA | C5: 258000 | D5: 2020-05-18 | E5: Deed of Trust
A6: First American Title | B6: FA | C6: 425000 | D6: 2020-05-27 | E6: Deed of Trust
A7: First American Title | B7: FA | C7: 455700 | D7: 2020-05-13 | E7: Deed of Trust
A8: First American Title | B8: FA | C8: 740000 | D8: 2020-05-07 | E8: Deed
A9: First American Title | B9: FA | C9: 175000 | D9: 2020-05-20 | E9: Deed of Trust
A10: First American Title | B10: FA | C10: 44760 | D10: 2020-05-04 | E10: Deed of Trust
A11: First American Title | B11: FA | C11: 1332000 | D11: 2020-05-12 | E11: Deed Subdivider
A12: First American Title | B12: FA | C12: 1162980 | D12: 2020-05-20 | E12: Deed
A13: First American Title | B13: FA | C13: 281441 | D13: 2020-05-11 | E13: Deed of Trust
A14: First American Title | B14: FA | C14: 490000 | D14: 2020-05-06 | E14: Deed
A15: First American Title | B15: FA | C15: 180000 | D15: 2020-05-08 | E15: Deed of Trust
A16: First American Title | B16: FA | C16: 205000 | D16: 2020-05-28 | E16: Deed
A17: First American Title | B17: FA | C17: 590000 | D17: 2020-05-05 | E17: Deed
A18: First American Title | B18: FA | C18: 510400 | D18: 2020-05-04 | E18: Deed of Trust
A19: First American Title | B19: FA | C19: 1225000 | D19: 2020-05-19 | E19: Deed Subdivider
A20: First American Title | B20: FA | C20: 314500 | D20: 2020-05-20 | E20: Deed
A21: First American Title | B21: FA | C21: 224500 | D21: 2020-05-06 | E21: Deed of Trust
A22: First American Title | B22: FA | C22: 219000 | D22: 2020-05-22 | E22: Deed of Trust
A23: First American Title | B23: FA | C23: 230000 | D23: 2020-05-05 | E23: Deed of Trust
A24: First American Title | B24: FA | C24: 405000 | D24: 2020-05-26 | E24: Deed of Trust
A25: First American Title | B25: FA | C25: 310843 | D25: 2020-05-29 | E25: Deed of Trust
A26: First American Title | B26: FA | C26: 1165500 | D26: 2020-05-21 | E26: Deed Subdivider
A27: First American Title | B27: FA | C27: 303500 | D27: 2020-05-28 | E27: Deed of Trust
A28: First American Title | B28: FA | C28: 215000 | D28: 2020-05-22 | E28: Deed of Trust
A29: First American Title | B29: FA | C29: 359000 | D29: 2020-05-14 | E29: Deed
A30: First American Title | B30: FA | C30: 350000 | D30: 2020-05-11 | E30: Deed
A31: First American Title | B31: FA | C31: 477000 | D31: 2020-05-22 | E31: Deed of Trust
A32: First American Title | B32: FA | C32: 225100 | D32: 2020-05-29 | E32: Deed of Trust
A33: First American Title | B33: FA | C33: 334034 | D33: 2020-05-18 | E33: Deed of Trust
A34: First American Title | B34: FA | C34: 296000 | D34: 2020-05-21 | E34: Deed of Trust
A35: First American Title | B35: FA | C35: 735000 | D35: 2020-05-29 | E35: Deed
A36: First American Title | B36: FA | C36: 450000 | D36: 2020-05-11 | E36: Deed
A37: First American Title | B37: FA | C37: 68000 | D37: 2020-05-13 | E37: Deed
A38: First American Title | B38: FA | C38: 780000 | D38: 2020-05-13 | E38: Deed
A39: First American Title | B39: FA | C39: 485450 | D39: 2020-05-15 | E39: Deed of Trust
A40: First American Title | B40: FA | C40: 271651 | D40: 2020-05-28 | E40: Deed of Trust
A41: First American Title | B41: FA | C41: 340000 | D41: 2020-05-08 | E41: Deed of Trust
A42: First Centennial Title | B42: FC | C42: 275004 | D42: 2020-05-18 | E42: Deed of Trust
A43: First Centennial Title | B43: FC | C43: 217000 | D43: 2020-05-22 | E43: Deed of Trust
A44: First Centennial Title | B44: FC | C44: 261000 | D44: 2020-05-19 | E44: Deed of Trust
A45: First Centennial Title | B45: FC | C45: 644000 | D45: 2020-05-19 | E45: Deed of Trust
A46: First Centennial Title | B46: FC | C46: 390000 | D46: 2020-05-19 | E46: Deed of Trust
A47: First Centennial Title | B47: FC | C47: 406000 | D47: 2020-05-19 | E47: Deed of Trust
A48: First Centennial Title | B48: FC | C48: 425600 | D48: 2020-05-13 | E48: Deed of Trust
A49: First Centennial Title | B49: FC | C49: 169000 | D49: 2020-05-13 | E49: Deed of Trust
A50: First Centennial Title | B50: FC | C50: 699000 | D50: 2020-05-13 | E50: Deed
A51: First Centennial Title | B51: FC | C51: 240500 | D51: 2020-05-26 | E51: Deed of Trust
A52: First Centennial Title | B52: FC | C52: 233000 | D52: 2020-05-18 | E52: Deed of Trust
A53: First Centennial Title | B53: FC | C53: 675000 | D53: 2020-05-22 | E53: Deed
A54: First Centennial Title | B54: FC | C54: 113000 | D54: 2020-05-26 | E54: Deed of Trust
A55: First Centennial Title | B55: FC | C55: 650000 | D55: 2020-05-26 | E55: Deed
A56: First Centennial Title | B56: FC | C56: 143200 | D56: 2020-05-20 | E56: Deed of Trust
A57: First Centennial Title | B57: FC | C57: 372000 | D57: 2020-05-26 | E57: Deed of Trust
A58: First Centennial Title | B58: FC | C58: 115000 | D58: 2020-05-26 | E58: Deed of Trust
A59: First Centennial Title | B59: FC | C59: 410000 | D59: 2020-05-01 | E59: Deed of Trust
A60: First Centennial Title | B60: FC | C60: 359450 | D60: 2020-05-18 | E60: Deed of Trust
A61: First Centennial Title | B61: FC | C61: 515000 | D61: 2020-05-20 | E61: Deed of Trust
A62: First Centennial Title | B62: FC | C62: 259000 | D62: 2020-05-29 | E62: Deed of Trust
A63: First Centennial Title | B63: FC | C63: 340000 | D63: 2020-05-26 | E63: Deed
A64: First Centennial Title | B64: FC | C64: 320000 | D64: 2020-05-29 | E64: Deed
A65: First Centennial Title | B65: FC | C65: 335000 | D65: 2020-05-01 | E65: Deed
A66: First Centennial Title | B66: FC | C66: 412000 | D66: 2020-05-11 | E66: Deed of Trust
A67: First Centennial Title | B67: FC | C67: 288000 | D67: 2020-05-11 | E67: Deed of Trust
A68: First Centennial Title | B68: FC | C68: 369600 | D68: 2020-05-05 | E68: Deed of Trust
A69: First Centennial Title | B69: FC | C69: 378750 | D69: 2020-05-28 | E69: Deed of Trust
A70: First Centennial Title | B70: FC | C70: 380000 | D70: 2020-05-06 | E70: Deed of Trust
A71: First Centennial Title | B71: FC | C71: 25000 | D71: 2020-05-05 | E71: Deed of Trust
A72: First Centennial Title | B72: FC | C72: 244000 | D72: 2020-05-27 | E72: Deed of Trust
A73: First Centennial Title | B73: FC | C73: 257550 | D73: 2020-05-27 | E73: Deed of Trust
A74: First Centennial Title | B74: FC | C74: 420000 | D74: 2020-05-15 | E74: Deed of Trust
A75: First Centennial Title | B75: FC | C75: 275000 | D75: 2020-05-13 | E75: Deed of Trust
A76: First Centennial Title | B76: FC | C76: 207000 | D76: 2020-05-08 | E76: Deed of Trust
A77: First Centennial Title | B77: FC | C77: 350000 | D77: 2020-05-26 | E77: Deed
A78: First Centennial Title | B78: FC | C78: 292000 | D78: 2020-05-11 | E78: Deed of Trust
A79: First Centennial Title | B79: FC | C79: 380000 | D79: 2020-05-06 | E79: Deed of Trust
A80: First Centennial Title | B80: FC | C80: 660000 | D80: 2020-05-12 | E80: Deed
A81: First Centennial Title | B81: FC | C81: 343000 | D81: 2020-05-08 | E81: Deed of Trust
A82: First Centennial Title | B82: FC | C82: 190000 | D82: 2020-05-06 | E82: Deed of Trust
A83: First Centennial Title | B83: FC | C83: 510000 | D83: 2020-05-06 | E83: Deed of Trust
A84: First Centennial Title | B84: FC | C84: 325000 | D84: 2020-05-15 | E84: Deed of Trust
A85: First Centennial Title | B85: FC | C85: 254000 | D85: 2020-05-29 | E85: Deed of Trust
A86: First Centennial Title | B86: FC | C86: 111500 | D86: 2020-05-28 | E86: Deed of Trust
A87: First Centennial Title | B87: FC | C87: 434000 | D87: 2020-05-29 | E87: Deed of Trust
A88: First Centennial Title | B88: FC | C88: 463000 | D88: 2020-05-28 | E88: Deed
A89: First Centennial Title | B89: FC | C89: 197000 | D89: 2020-05-11 | E89: Deed of Trust
A90: Signature Title | B90: SIG | C90: 530000 | D90: 2020-05-15 | E90: Deed
A91: Signature Title | B91: SIG | C91: 1500000 | D91: 2020-05-08 | E91: Deed
A92: Signature Title | B92: SIG | C92: 1409500 | D92: 2020-05-29 | E92: Deed of Trust
A93: Signature Title | B93: SIG | C93: 227300 | D93: 2020-05-20 | E93: Deed of Trust
A94: Signature Title | B94: SIG | C94: 589000 | D94: 2020-05-04 | E94: Deed of Trust
A95: Signature Title | B95: SIG | C95: 750000 | D95: 2020-05-08 | E95: Deed
A96: Signature Title | B96: SIG | C96: 498100 | D96: 2020-05-26 | E96: Deed of Trust
A97: Signature Title | B97: SIG | C97: 895000 | D97: 2020-05-15 | E97: Deed
A98: Signature Title | B98: SIG | C98: 1300000 | D98: 2020-05-19 | E98: Deed of Trust
A99: Signature Title | B99: SIG | C99: 305700 | D99: 2020-05-13 | E99: Deed of Trust
A100: Stewart Title | B100: ST | C100: 124592 | D100: 2020-05-28 | E100: Deed of Trust
A101: Stewart Title | B101: ST | C101: 430000 | D101: 2020-05-12 | E101: Deed
A102: Stewart Title | B102: ST | C102: 210000 | D102: 2020-05-20 | E102: Deed
A103: Stewart Title | B103: ST | C103: 385000 | D103: 2020-05-21 | E103: Deed
A104: Stewart Title | B104: ST | C104: 415000 | D104: 2020-05-21 | E104: Deed
A105: Stewart Title | B105: ST | C105: 231000 | D105: 2020-05-20 | E105: Deed of Trust
A106: Ticor Title | B106: TI | C106: 337000 | D106: 2020-05-27 | E106: Deed of Trust
A107: Ticor Title | B107: TI | C107: 255000 | D107: 2020-05-06 | E107: Deed of Trust
A108: Ticor Title | B108: TI | C108: 387900 | D108: 2020-05-20 | E108: Deed
A109: Ticor Title | B109: TI | C109: 433600 | D109: 2020-05-29 | E109: Deed of Trust
A110: Ticor Title | B110: TI | C110: 272000 | D110: 2020-05-28 | E110: Deed of Trust
A111: Ticor Title | B111: TI | C111: 335000 | D111: 2020-05-29 | E111: Deed
A112: Ticor Title | B112: TI | C112: 75000 | D112: 2020-05-22 | E112: Deed of Trust
A113: Ticor Title | B113: TI | C113: 246400 | D113: 2020-05-28 | E113: Deed of Trust
A114: Ticor Title | B114: TI | C114: 125000 | D114: 2020-05-27 | E114: Deed of Trust
A115: Ticor Title | B115: TI | C115: 318000 | D115: 2020-05-04 | E115: Deed
A116: Ticor Title | B116: TI | C116: 212500 | D116: 2020-05-28 | E116: Deed of Trust
A117: Ticor Title | B117: TI | C117: 485500 | D117: 2020-05-26 | E117: Deed
A118: Ticor Title | B118: TI | C118: 196000 | D118: 2020-05-05 | E118: Deed of Trust
A119: Ticor Title | B119: TI | C119: 290000 | D119: 2020-05-01 | E119: Deed
A120: Ticor Title | B120: TI | C120: 441500 | D120: 2020-05-05 | E120: Deed of Trust
A121: Ticor Title | B121: TI | C121: 405000 | D121: 2020-05-04 | E121: Deed of Trust
A122: Ticor Title | B122: TI | C122: 410000 | D122: 2020-05-26 | E122: Deed
A123: Ticor Title | B123: TI | C123: 675000 | D123: 2020-05-04 | E123: Deed
A124: Ticor Title | B124: TI | C124: 1050000 | D124: 2020-05-26 | E124: Deed of Trust
A125: Ticor Title | B125: TI | C125: 253154 | D125: 2020-05-04 | E125: Deed of Trust
A126: Ticor Title | B126: TI | C126: 326182 | D126: 2020-05-04 | E126: Deed of Trust
A127: Ticor Title | B127: TI | C127: 324000 | D127: 2020-05-22 | E127: Deed
A128: Ticor Title | B128: TI | C128: 295000 | D128: 2020-05-28 | E128: Deed
A129: Ticor Title | B129: TI | C129: 220000 | D129: 2020-05-06 | E129: Deed of Trust
A130: Ticor Title | B130: TI | C130: 350600 | D130: 2020-05-20 | E130: Deed of Trust
A131: Ticor Title | B131: TI | C131: 312000 | D131: 2020-05-19 | E131: Deed of Trust
A132: Ticor Title | B132: TI | C132: 384000 | D132: 2020-05-19 | E132: Deed of Trust
A133: Ticor Title | B133: TI | C133: 246100 | D133: 2020-05-19 | E133: Deed of Trust
A134: Ticor Title | B134: TI | C134: 330000 | D134: 2020-05-19 | E134: Deed
A135: Ticor Title | B135: TI | C135: 224000 | D135: 2020-05-20 | E135: Deed of Trust
A136: Ticor Title | B136: TI | C136: 479363 | D136: 2020-05-29 | E136: Deed of Trust
A137: Ticor Title | B137: TI | C137: 390000 | D137: 2020-05-29 | E137: Deed
A138: Ticor Title | B138: TI | C138: 360000 | D138: 2020-05-15 | E138: Deed of Trust
A139: Ticor Title | B139: TI | C139: 276402 | D139: 2020-05-06 | E139: Deed of Trust
A140: Ticor Title | B140: TI | C140: 279165 | D140: 2020-05-14 | E140: Deed of Trust
A141: Ticor Title | B141: TI | C141: 325000 | D141: 2020-05-06 | E141: Deed
A142: Ticor Title | B142: TI | C142: 241500 | D142: 2020-05-06 | E142: Deed of Trust
A143: Ticor Title | B143: TI | C143: 310000 | D143: 2020-05-06 | E143: Deed of Trust
A144: Ticor Title | B144: TI | C144: 264000 | D144: 2020-05-01 | E144: Deed of Trust
A145: Ticor Title | B145: TI | C145: 429396 | D145: 2020-05-06 | E145: Deed of Trust
A146: Ticor Title | B146: TI | C146: 410000 | D146: 2020-05-05 | E146: Deed
A147: Ticor Title | B147: TI | C147: 450000 | D147: 2020-05-06 | E147: Deed
A148: Ticor Title | B148: TI | C148: 375000 | D148: 2020-05-05 | E148: Deed
A149: Ticor Title | B149: TI | C149: 255400 | D149: 2020-05-13 | E149: Deed of Trust
A150: Ticor Title | B150: TI | C150: 308164 | D150: 2020-05-15 | E150: Deed
A151: Ticor Title | B151: TI | C151: 820000 | D151: 2020-05-22 | E151: Deed
A152: Ticor Title | B152: TI | C152: 675000 | D152: 2020-05-21 | E152: Deed of Trust
A153: Ticor Title | B153: TI | C153: 256000 | D153: 2020-05-26 | E153: Deed of Trust
A154: Ticor Title | B154: TI | C154: 320500 | D154: 2020-05-26 | E154: Deed of Trust
A155: Ticor Title | B155: TI | C155: 187000 | D155: 2020-05-04 | E155: Deed of Trust
A156: Ticor Title | B156: TI | C156: 1500000 | D156: 2020-05-13 | E156: Deed
A157: Ticor Title | B157: TI | C157: 364000 | D157: 2020-05-11 | E157: Deed of Trust
A158: Ticor Title | B158: TI | C158: 460950 | D158: 2020-05-11 | E158: Deed of Trust
A159: Ticor Title | B159: TI | C159: 261200 | D159: 2020-05-19 | E159: Deed of Trust
A160: Ticor Title | B160: TI | C160: 159000 | D160: 2020-05-12 | E160: Deed of Trust
A161: Ticor Title | B161: TI | C161: 368000 | D161: 2020-05-15 | E161: Deed
A162: Ticor Title | B162: TI | C162: 164500 | D162: 2020-05-18 | E162: Deed of Trust
A163: Ticor Title | B163: TI | C163: 211250 | D163: 2020-05-18 | E163: Deed of Trust
A164: Ticor Title | B164: TI | C164: 324000 | D164: 2020-05-18 | E164: Deed
A165: Ticor Title | B165: TI | C165: 492760 | D165: 2020-05-18 | E165: Deed of Trust
A166: Ticor Title | B166: TI | C166: 256800 | D166: 2020-05-11 | E166: Deed of Trust
A167: Ticor Title | B167: TI | C167: 155500 | D167: 2020-05-13 | E167: Deed of Trust
A168: Ticor Title | B168: TI | C168: 69000 | D168: 2020-05-15 | E168: Deed
A169: Ticor Title | B169: TI | C169: 190000 | D169: 2020-05-12 | E169: Deed of Trust
A170: Toiyabe Title | B170: TT | C170: 225000 | D170: 2020-05-26 | E170: Deed
A171: Toiyabe Title | B171: TT | C171: 300000 | D171: 2020-05-06 | E171: Deed of Trust
A172: Western Title | B172: WE | C172: 250000 | D172: 2020-05-08 | E172: Deed of Trust
A173: Western Title | B173: WE | C173: 394000 | D173: 2020-05-29 | E173: Deed of Trust
A174: Western Title | B174: WE | C174: 850000 | D174: 2020-05-11 | E174: Deed of Trust
A175: Western Title | B175: WE | C175: 310000 | D175: 2020-05-08 | E175: Deed
A176: Western Title | B176: WE | C176: 260000 | D176: 2020-05-08 | E176: Deed
A177: Western Title | B177: WE | C177: 349196 | D177: 2020-05-28 | E177: Deed Subdivider
A178: Western Title | B178: WE | C178: 237000 | D178: 2020-05-08 | E178: Deed of Trust
A179: Western Title | B179: WE | C179: 699000 | D179: 2020-05-11 | E179: Deed of Trust
A180: Western Title | B180: WE | C180: 450000 | D180: 2020-05-12 | E180: Deed of Trust
A181: Western Title | B181: WE | C181: 354000 | D181: 2020-05-28 | E181: Deed of Trust
A182: Western Title | B182: WE | C182: 320000 | D182: 2020-05-28 | E182: Deed
A183: Western Title | B183: WE | C183: 358000 | D183: 2020-05-28 | E183: Deed of Trust
A184: Western Title | B184: WE | C184: 360000 | D184: 2020-05-28 | E184: Deed of Trust
A185: Western Title | B185: WE | C185: 296000 | D185: 2020-05-07 | E185: Deed of Trust
A186: Western Title | B186: WE | C186: 668000 | D186: 2020-05-29 | E186: Deed
A187: Western Title | B187: WE | C187: 614000 | D187: 2020-05-28 | E187: Deed of Trust
A188: Western Title | B188: WE | C188: 444330 | D188: 2020-05-29 | E188: Deed Subdivider
A189: Western Title | B189: WE | C189: 246000 | D189: 2020-05-11 | E189: Deed of Trust
A190: Western Title | B190: WE | C190: 362289 | D190: 2020-05-29 | E190: Deed of Trust
A191: Western Title | B191: WE | C191: 398848 | D191: 2020-05-12 | E191: Deed of Trust
A192: Western Title | B192: WE | C192: 260800 | D192: 2020-05-28 | E192: Deed of Trust
A193: Western Title | B193: WE | C193: 190000 | D193: 2020-05-06 | E193: Deed of Trust
A194: Western Title | B194: WE | C194: 500000 | D194: 2020-05-29 | E194: Deed of Trust
A195: Western Title | B195: WE | C195: 242000 | D195: 2020-05-12 | E195: Deed of Trust
A196: Western Title | B196: WE | C196: 449000 | D196: 2020-05-27 | E196: Deed of Trust
A197: Western Title | B197: WE | C197: 244000 | D197: 2020-05-27 | E197: Deed of Trust
A198: Western Title | B198: WE | C198: 166000 | D198: 2020-05-15 | E198: Deed of Trust
A199: Western Title | B199: WE | C199: 234000 | D199: 2020-05-15 | E199: Deed of Trust
A200: Western Title | B200: WE | C200: 288600 | D200: 2020-05-15 | E200: Deed of Trust
... 55 more rows
